{"text_format":"1","workbook":"xlsx","n_sheets":6,"sheets":["الرئيسية","قاعدة البيانات","قوائم","قوائم بالسن","ملف اعمل السنة","kh"],"not_rendered":{"charts":0,"images":6,"macros":1,"external_links":1,"defined_names":5,"comments":0,"pivot_tables":0},"unopened":[],"bounds":{"document_bytes":16777216,"sheet_cells":100000,"rows_first":2000,"rows_last":500,"rows_between":2000,"halvings":0,"cell_chars":16384,"cell_head_chars":4096},"cells_cut":0,"cells_raw":0,"read":"whole","date_system":"1900"}

{"sheet":"الرئيسية","index":0,"n_rows":22,"n_cols":12,"rows_kept":22,"cut":false,"hidden":false,"merged":[[21,0,22,8],[2,0,19,0],[2,8,19,8],[5,1,15,1],[5,3,15,3],[5,5,15,5],[5,7,15,7],[6,2,15,2],[6,4,15,4],[6,6,15,6],[16,1,19,7]]}
[]
[]
[null,null,null,null,null,null,null,null,null,null,null,1]
[]
[]
[]
[]
[]
[]
[]
[]
[]
[]
[]
[]
[]
[null,"مع تحيات وجيه شرف الدين ابو مالك وماريه"]
[]
[]
[]
[]
[{"$f":"\"للعام الدراسى \"&\" \"&IF(TODAY()>DATE(YEAR(TODAY()),9,1),YEAR(TODAY())&\" / \"&YEAR(TODAY())+1,YEAR(TODAY())-1&\" / \"&YEAR(TODAY()))","v":"للعام الدراسى  2022 / 2023"}]

{"sheet":"قاعدة البيانات","index":1,"n_rows":399,"n_cols":33,"rows_kept":399,"cut":false,"hidden":false,"merged":[[19,26,19,27],[13,22,14,22],[13,25,14,25],[15,22,16,22],[15,25,16,25],[17,22,18,22],[17,25,18,25],[9,22,10,22],[9,25,10,25],[11,22,12,22],[11,25,12,25],[19,21,19,24],[6,18,6,19],[0,15,0,16],[0,23,0,24],[7,22,8,22],[7,25,8,25]]}
["الصف","عدد الفصول","عدد الطلاب","الصف القديم","الصف الجديد",null,null,null,null,null,{"$f":"DATE(YEAR(TODAY()),10,1)","v":"2023-10-01"},null,null,null,"1 / 1","بيان التوزيع",null,{"$f":"B8","v":0},{"$f":"B9","v":0},{"$f":"B10","v":0},{"$f":"B11","v":0},{"$f":"B12","v":0},{"$f":"B13","v":0},"المجموع"]
[1,6,{"$f":"COUNTA($C$8:$C$1000)","v":392},1,3,null,null,null,null,null,null,null,null,null,"ذكر","الأولاد","بنين",{"$f":"COUNTIFS($I$6:$I$752,\"ذكر\",$J$6:$J$752,R$1)","v":0},{"$f":"COUNTIFS($I$6:$I$752,\"ذكر\",$J$6:$J$752,S$1)","v":0},0,0,0,0,"عدد البنون",{"$f":"COUNTIF($I$8:$I$1000,\"ذكر\")","v":197}]
[null,null,null,null,null,null,null,null,null,null,"1 / 1",null,null,null,"انثى","البنات","بنات",{"$f":"COUNTIFS($I$6:$I$752,\"انثى\",$J$6:$J$752,R$1)","v":0},{"$f":"COUNTIFS($I$6:$I$752,\"انثى\",$J$6:$J$752,S$1)","v":0},0,0,0,0,"عدد البنات",{"$f":"COUNTIF($I$8:$I$1000,\"انثى\")","v":195}]
[null,null,null,null,null,null,null,null,null,null,null,null,null,null,null,null,"الجملة",{"$f":"SUM(R2:R3)","v":0},{"$f":"SUM(S2:S3)","v":0},0,0,0,0,"المجموع",{"$f":"SUM(Y2:Y3)","v":392}]
[]
[]
["م","الصف","أسماء الطلاب","الرقم القومى","تاريخ الميلاد","يوم","شهر","سنة","النوع","الفصل","اسم الاب","الصف ","حالة التشابة",null,"الاسم","من فصل","الى فصل",null,"توزيع الفصول",null,null,"التوزيع","م","النوع","التوزيع","العدد","التوزيع","الفرق",null,"أسماء الطلاب","النوع","الفصل","اسم الاب"]
[1,null,"ابراهيم حسن ابراهيم مسعد",31401151403495,{"$f":"IFERROR(DATE(IF(LEFT(D8,1)*1=3,20,19)&MID(D8,2,2),MID(D8,4,2),MID(D8,6,2)),\"\")","v":"2014-01-15"},{"$f":"IFERROR(DATEDIF(E8,$K$1,\"MD\"),\"\")","v":16},{"$f":"IFERROR(DATEDIF(E8,$K$1,\"YM\"),\"\")","v":8},{"$f":"IFERROR(DATEDIF(E8,$K$1,\"Y\"),\"\")","v":9},{"$f":"IFERROR(IF(ISODD(MID(D8,13,1)),\"ذكر\",\"انثى\"),\"\")","v":"ذكر"},null,{"$f":"IFERROR(Father_Name(C8),\"\")","v":"حسن ابراهيم مسعد"},null,{"$f":"IF(C8=\"\",\"\",IF(COUNTIF($K$8:$K$1000,K8)>1,\"توئم\",\"\"))","v":"توئم"},null,null,null,null,null,{"$f":"IF(ROW()-7>$B$2,\"\",ROW()-7)","v":1},{"$f":"IF(S8=\"\",\"\",IF(MOD($C$2,$B$2)>=S8,INT($C$2/$B$2)+1,INT($C$2/$B$2)))","v":66},null,{"$f":"B8","v":0},{"$f":"S8","v":1},"ذكر",{"$f":"IF(MOD($Y$2,$B$2)>=S8,INT($Y$2/$B$2)+1,INT($Y$2/$B$2))","v":33},{"$f":"SUM(Y8:Y9)","v":66},{"$f":"R2","v":0},{"$f":"IFERROR(R2-Y8,\"\")","v":-33},null,"ابوبكر السيد محمد عبدالبرمحمد شرف الدين",{"$f":"IFERROR(VLOOKUP(AD8,$C$8:$K$700,7,0),\"\")","v":"ذكر"},{"$f":"IFERROR(VLOOKUP(AD8,$C$8:$K$700,8,0),\"\")","v":0},{"$f":"IFERROR(VLOOKUP(AD8,$C$8:$K$700,9,0),\"\")","v":"السيد محمد عبدالبرمحمد شرف الدين"}]
[2,null,"ابوبكر السيد محمد عبدالبرمحمد شرف الدين",31311041404578,"2013-11-04",{"$f":"IFERROR(DATEDIF(E9,$K$1,\"MD\"),\"\")","v":27},{"$f":"IFERROR(DATEDIF(E9,$K$1,\"YM\"),\"\")","v":10},{"$f":"IFERROR(DATEDIF(E9,$K$1,\"Y\"),\"\")","v":9},{"$f":"IFERROR(IF(ISODD(MID(D9,13,1)),\"ذكر\",\"انثى\"),\"\")","v":"ذكر"},null,{"$f":"IFERROR(Father_Name(C9),\"\")","v":"السيد محمد عبدالبرمحمد شرف الدين"},null,{"$f":"IF(C9=\"\",\"\",IF(COUNTIF($K$8:$K$1000,K9)>1,\"توئم\",\"\"))","v":"توئم"},null,null,null,null,null,{"$f":"IF(ROW()-7>$B$2,\"\",ROW()-7)","v":2},{"$f":"IF(S9=\"\",\"\",IF(MOD($C$2,$B$2)>=S9,INT($C$2/$B$2)+1,INT($C$2/$B$2)))","v":66},null,{"$f":"B8","v":0},null,"انثى",{"$f":"IF(MOD($Y$3,$B$2)>=S8,INT($Y$3/$B$2)+1,INT($Y$3/$B$2))","v":33},null,{"$f":"S2","v":0},{"$f":"Y9-R3","v":33},null,"باسم السيد محمد عبدالبرمحمد شرف الدين",{"$f":"IFERROR(VLOOKUP(AD9,$C$8:$K$700,7,0),\"\")","v":"ذكر"},{"$f":"IFERROR(VLOOKUP(AD9,$C$8:$K$700,8,0),\"\")","v":0},{"$f":"IFERROR(VLOOKUP(AD9,$C$8:$K$700,9,0),\"\")","v":"السيد محمد عبدالبرمحمد شرف الدين"}]
[3,null,"ابوبكر محمد محمود عبدالمنعم",31405131400959,"2014-05-13",18,4,9,"ذكر",null,{"$f":"IFERROR(Father_Name(C10),\"\")","v":"محمد محمود عبدالمنعم"},null,"",null,null,null,null,null,3,65,null,{"$f":"B9","v":0},{"$f":"S9","v":2},"ذكر",{"$f":"IF(MOD($Y$2,$B$2)>=S9,INT($Y$2/$B$2)+1,INT($Y$2/$B$2))","v":33},{"$f":"SUM(Y10:Y11)","v":66},{"$f":"T2","v":0},{"$f":"S2-Y10","v":-33},null,"ابراهيم حسن ابراهيم مسعد",{"$f":"IFERROR(VLOOKUP(AD10,$C$8:$K$700,7,0),\"\")","v":"ذكر"},{"$f":"IFERROR(VLOOKUP(AD10,$C$8:$K$700,8,0),\"\")","v":0},{"$f":"IFERROR(VLOOKUP(AD10,$C$8:$K$700,9,0),\"\")","v":"حسن ابراهيم مسعد"}]
[4,null,"أحمد حسن ابراهيم مسعد",31311011407637,"2013-11-01",0,11,9,"ذكر",null,{"$f":"IFERROR(Father_Name(C11),\"\")","v":"حسن ابراهيم مسعد"},null,"توئم",null,null,null,null,null,4,65,null,{"$f":"B9","v":0},null,"انثى",{"$f":"IF(MOD($Y$3,$B$2)>=S9,INT($Y$3/$B$2)+1,INT($Y$3/$B$2))","v":33},null,{"$f":"U2","v":0},{"$f":"Y11-S3","v":33},null,"أحمد حسن ابراهيم مسعد",{"$f":"IFERROR(VLOOKUP(AD11,$C$8:$K$700,7,0),\"\")","v":"ذكر"},{"$f":"IFERROR(VLOOKUP(AD11,$C$8:$K$700,8,0),\"\")","v":0},{"$f":"IFERROR(VLOOKUP(AD11,$C$8:$K$700,9,0),\"\")","v":"حسن ابراهيم مسعد"}]
[5,null,"احمد اسامه السعيد عدلى مختار",31409221404118,"2014-09-22",9,0,9,"ذكر",null,{"$f":"IFERROR(Father_Name(C12),\"\")","v":"اسامه السعيد عدلى مختار"},null,"",null,null,null,null,null,{"$f":"IF(ROW()-7>$B$2,\"\",ROW()-7)","v":5},65,null,{"$f":"B10","v":0},{"$f":"S10","v":3},"ذكر",{"$f":"IF(MOD($Y$2,$B$2)>=S10,INT($Y$2/$B$2)+1,INT($Y$2/$B$2))","v":33},{"$f":"SUM(Y12:Y13)","v":65},{"$f":"V2","v":0},{"$f":"Y12-T2","v":33},null,null,{"$f":"IFERROR(VLOOKUP(AD12,$C$8:$K$700,7,0),\"\")","v":""},{"$f":"IFERROR(VLOOKUP(AD12,$C$8:$K$700,8,0),\"\")","v":""},{"$f":"IFERROR(VLOOKUP(AD12,$C$8:$K$700,9,0),\"\")","v":""}]
[6,null,"احمد بدوي عبدالهادي احمد",31404101402934,"2014-04-10",21,5,9,"ذكر",null,{"$f":"IFERROR(Father_Name(C13),\"\")","v":"بدوي عبدالهادي احمد"},null,"",null,null,null,null,null,6,65,null,{"$f":"B10","v":0},null,"انثى",{"$f":"IF(MOD($Y$3,$B$2)>=S10,INT($Y$3/$B$2),INT($Y$3/$B$2))","v":32},null,{"$f":"W2","v":0},{"$f":"T3-Y13","v":-32},null,null,"","",""]
[7,null,"احمد حمدى احمد ياسين",31401081403336,"2014-01-08",23,8,9,"ذكر",null,{"$f":"IFERROR(Father_Name(C14),\"\")","v":"حمدى احمد ياسين"},null,"",null,null,null,null,null,"المجموع",{"$f":"SUM(T8:T13)","v":392},null,{"$f":"B11","v":0},{"$f":"S11","v":4},"ذكر",{"$f":"IF(MOD($Y$2,$B$2)>=S11,INT($Y$2/$B$2)+1,INT($Y$2/$B$2))","v":33},{"$f":"SUM(Y14:Y15)","v":65},{"$f":"R3","v":0},{"$f":"U2-Y14","v":-33},null,null,"","",""]
[8,null,"أحمد سامح مجدى فرحات",31409181404918,"2014-09-18",13,0,9,"ذكر",null,{"$f":"IFERROR(Father_Name(C15),\"\")","v":"سامح مجدى فرحات"},null,"",null,null,null,null,null,"",{"$f":"IF(S15=\"\",\"\",IF(MOD($C$2,$B$2)>$J$8,INT($C$2/$B$2)+1,INT($C$2/$B$2)))","v":""},null,{"$f":"B11","v":0},null,"انثى",{"$f":"IF(MOD($Y$3,$B$2)>=S11,INT($Y$3/$B$2)+1,INT($Y$3/$B$2))","v":32},null,{"$f":"S3","v":0},{"$f":"Y15-U3","v":32},null,null,"","",""]
[9,null,"أحمد شريف مختار عبد المنعم زكي المستكاوي",31409061403918,"2014-09-06",25,0,9,"ذكر",null,{"$f":"IFERROR(Father_Name(C16),\"\")","v":"شريف مختار عبد المنعم زكي المستكاوي"},null,"",null,null,null,null,null,null,null,null,{"$f":"B12","v":0},{"$f":"S12","v":5},"ذكر",{"$f":"IF(MOD($Y$2,$B$2)>=S12,INT($Y$2/$B$2)+1,INT($Y$2/$B$2))","v":33},{"$f":"SUM(Y16:Y17)","v":65},{"$f":"T3","v":0},{"$f":"V2-Y16","v":-33},null,null,"","",""]
[10,null,"احمد صابر اسماعيل السيد",31309251405637,"2013-09-25",6,0,10,"ذكر",null,{"$f":"IFERROR(Father_Name(C17),\"\")","v":"صابر اسماعيل السيد"},null,"",null,null,null,null,null,null,null,null,{"$f":"B12","v":0},null,"انثى",{"$f":"IF(MOD($Y$3,$B$2)>=S12,INT($Y$3/$B$2)+1,INT($Y$3/$B$2))","v":32},null,{"$f":"U3","v":0},{"$f":"V3-Y17","v":-32},null,null,"","",""]
[11,null,"احمد عادل عبدالباسط محمد",31405281403573,"2014-05-28",3,4,9,"ذكر",null,{"$f":"IFERROR(Father_Name(C18),\"\")","v":"عادل عبدالباسط محمد"},null,"",null,null,null,null,null,null,null,null,{"$f":"B13","v":0},{"$f":"S13","v":6},"ذكر",{"$f":"IF(V18=0,\"\",IF(MOD($Y$2,$B$2)>=S13,INT($Y$2/$B$2)+1,INT($Y$2/$B$2)))","v":""},{"$f":"SUM(Y18:Y19)","v":0},{"$f":"V3","v":0},{"$f":"IFERROR(Y18-W2,\"\")","v":""},null,null,"","",""]
[12,null,"أحمد عبد الرحمن فرحات عبد الرحمن علي أبو العينين",31409081403019,"2014-09-08",23,0,9,"ذكر",null,{"$f":"IFERROR(Father_Name(C19),\"\")","v":"عبد الرحمن فرحات عبد الرحمن علي أبو العينين"},null,"",null,null,null,null,null,null,null,null,{"$f":"B13","v":0},null,"انثى",{"$f":"IF(V19=0,\"\",IF(MOD($Y$3,$B$2)>=S13,INT($Y$3/$B$2)+1,INT($Y$3/$B$2)+1))","v":""},null,{"$f":"W3","v":0},{"$f":"IFERROR(Y19-W3,\"\")","v":""},null,null,"","",""]
[13,null,"احمد على عثمان حسينى",31312241401278,"2013-12-24",7,9,9,"ذكر",null,{"$f":"IFERROR(Father_Name(C20),\"\")","v":"على عثمان حسينى"},null,"",null,null,null,null,null,null,null,null,"المجــــــــــــــــــــموع",null,null,null,{"$f":"SUM(Z8:Z19)","v":327},null,null,null,null,"","",""]
[14,null,"احمد كرم عبدالفتاح سعيد",31408201404611,"2014-08-20",11,1,9,"ذكر",null,{"$f":"IFERROR(Father_Name(C21),\"\")","v":"كرم عبدالفتاح سعيد"},null,"",null,null,null,null,null,null,null,null,null,null,null,null,null,null,null,null,null,"","",""]
[15,null,"احمد محمد سويلم احمد",31311181402559,"2013-11-18",13,10,9,"ذكر",null,{"$f":"IFERROR(Father_Name(C22),\"\")","v":"محمد سويلم احمد"},null,"",null,null,null,null,null,null,null,null,null,null,null,null,null,null,null,null,null,"","",""]
[16,null,"احمد محمد عبدالمعز الصياد",31405171404515,"2014-05-17",14,4,9,"ذكر",null,{"$f":"IFERROR(Father_Name(C23),\"\")","v":"محمد عبدالمعز الصياد"},null,"",null,null,null,null,null,null,null,null,null,null,null,null,null,null,null,null,null,"","",""]
[17,null,"أحمد محمود طارق عفيفي عبدالفتاح",31407071404332,"2014-07-07",24,2,9,"ذكر",null,{"$f":"IFERROR(Father_Name(C24),\"\")","v":"محمود طارق عفيفي عبدالفتاح"},null,"",null,null,null,null,null,null,null,null,null,null,null,null,null,null,null,null,null,"","",""]
[18,null,"أحمد هانى مهدى منصور مجاهد",31402151404137,"2014-02-15",16,7,9,"ذكر",null,{"$f":"IFERROR(Father_Name(C25),\"\")","v":"هانى مهدى منصور مجاهد"},null,"",null,null,null,null,null,null,null,null,null,null,null,null,null,null,null,null,null,"","",""]
[19,null,"احمد وليد طه محمد",31311111404953,"2013-11-11",20,10,9,"ذكر",null,{"$f":"IFERROR(Father_Name(C26),\"\")","v":"وليد طه محمد"},null,"",null,null,null,null,null,null,null,null,null,null,null,null,null,null,null,null,null,"","",""]
[20,null,"احمد ياسر عبدالحليم عبدالله",31407271402733,"2014-07-27",4,2,9,"ذكر",null,{"$f":"IFERROR(Father_Name(C27),\"\")","v":"ياسر عبدالحليم عبدالله"},null,"",null,null,null,null,null,null,null,null,null,null,null,null,null,null,null,null,null,"","",""]
[21,null,"آدم أحمد عبد الغفار جبر علي قدوسة",31312041404175,"2013-12-04",27,9,9,"ذكر",null,{"$f":"IFERROR(Father_Name(C28),\"\")","v":"أحمد عبد الغفار جبر علي قدوسة"},null,"",null,null,null,null,null,null,null,null,null,null,null,null,null,null,null,null,null,"","",""]
[22,null,"أدم اشرف محمد قدوسه",31312131402953,"2013-12-13",18,9,9,"ذكر",null,{"$f":"IFERROR(Father_Name(C29),\"\")","v":"اشرف محمد قدوسه"},null,"",null,null,null,null,null,null,null,null,null,null,null,null,null,null,null,null,null,"","",""]
[23,null,"آدم رضا عبد الحميد عبد الصبور سليمان",31407271405635,"2014-07-27",4,2,9,"ذكر",null,{"$f":"IFERROR(Father_Name(C30),\"\")","v":"رضا عبد الحميد عبد الصبور سليمان"},null,"",null,null,null,null,null,null,null,null,null,null,null,null,null,null,null,null,null,"","",""]
[24,null,"ادم محمد فرحات طه",31407011408312,"2014-07-01",0,3,9,"ذكر",null,{"$f":"IFERROR(Father_Name(C31),\"\")","v":"محمد فرحات طه"},null,"",null,null,null,null,null,null,null,null,null,null,null,null,null,null,null,null,null,"","",""]
[25,null,"ادم محمود عبدالحي قناوي",31406271403393,"2014-06-27",4,3,9,"ذكر",null,{"$f":"IFERROR(Father_Name(C32),\"\")","v":"محمود عبدالحي قناوي"},null,"",null,null,null,null,null,null,null,null,null,null,null,null,null,null,null,null,null,"","",""]
[26,null,"أدم ياسر فرج الله أحمد",31404221402091,"2014-04-22",9,5,9,"ذكر",null,{"$f":"IFERROR(Father_Name(C33),\"\")","v":"ياسر فرج الله أحمد"},null,"",null,null,null,null,null,null,null,null,null,null,null,null,null,null,null,null,null,"","",""]
[27,null,"ادهم احمد محمد محمد حسن",31409141405156,"2014-09-14",17,0,9,"ذكر",null,{"$f":"IFERROR(Father_Name(C34),\"\")","v":"احمد محمد محمد حسن"},null,"",null,null,null,null,null,null,null,null,null,null,null,null,null,null,null,null,null,"","",""]
[28,null,"أدهم اشرف فرج الله احمد ابراهيم",31404291402773,"2014-04-29",2,5,9,"ذكر",null,{"$f":"IFERROR(Father_Name(C35),\"\")","v":"اشرف فرج الله احمد ابراهيم"},null,""]
[29,null,"ادهم شحتة فوزي زيدان",31407281401077,"2014-07-28",3,2,9,"ذكر",null,{"$f":"IFERROR(Father_Name(C36),\"\")","v":"شحتة فوزي زيدان"},null,""]
[30,null,"ادهم محمد أحمد فهمي",31404211402794,"2014-04-21",10,5,9,"ذكر",null,{"$f":"IFERROR(Father_Name(C37),\"\")","v":"محمد أحمد فهمي"},null,""]
[31,null,"أدهم محمد فهمى الألفى",31311031404413,"2013-11-03",28,10,9,"ذكر",null,{"$f":"IFERROR(Father_Name(C38),\"\")","v":"محمد فهمى الألفى"},null,""]
[32,null,"اسلام هاني طه محمد",31406111402854,"2014-06-11",20,3,9,"ذكر",null,{"$f":"IFERROR(Father_Name(C39),\"\")","v":"هاني طه محمد"},null,""]
[33,null,"السيد احمد السيد محمد",31405251406411,"2014-05-25",6,4,9,"ذكر",null,{"$f":"IFERROR(Father_Name(C40),\"\")","v":"احمد السيد محمد"},null,""]
[34,null,"السيد خالد السيد زيدان",31406161405153,"2014-06-16",15,3,9,"ذكر",null,{"$f":"IFERROR(Father_Name(C41),\"\")","v":"خالد السيد زيدان"},null,""]
[1,null,"السيد عبد المعز السيد عبد المعز",31409011411634,"2014-09-01",0,1,9,"ذكر",null,{"$f":"IFERROR(Father_Name(C42),\"\")","v":"عبد المعز السيد عبد المعز"},null,""]
[2,null,"الصياد احمد الصياد حسن",31408231401536,"2014-08-23",8,1,9,"ذكر",null,{"$f":"IFERROR(Father_Name(C43),\"\")","v":"احمد الصياد حسن"},null,""]
[3,null,"أمير سيف الإسلام رضا عبد الهادي محمد خضر",31409201405673,"2014-09-20",11,0,9,"ذكر",null,{"$f":"IFERROR(Father_Name(C44),\"\")","v":"سيف الإسلام رضا عبد الهادي محمد خضر"},null,""]
[4,null,"امير محمد هاشم عبدالرحمن",31407061404113,"2014-07-06",25,2,9,"ذكر",null,{"$f":"IFERROR(Father_Name(C45),\"\")","v":"محمد هاشم عبدالرحمن"},null,""]
[5,null,"باسم السيد محمد عبدالبرمحمد شرف الدين",31405291402575,"2014-05-29",2,4,9,"ذكر",null,{"$f":"IFERROR(Father_Name(C46),\"\")","v":"السيد محمد عبدالبرمحمد شرف الدين"},null,"توئم"]
[6,null,"بدر الدين مصطفي محمود السيد",31310201405677,"2013-10-20",11,11,9,"ذكر",null,{"$f":"IFERROR(Father_Name(C47),\"\")","v":"مصطفي محمود السيد"},null,""]
[7,null,"جمال عادل جمال عبدالوهاب",31310311403971,"2013-10-31",0,11,9,"ذكر",null,{"$f":"IFERROR(Father_Name(C48),\"\")","v":"عادل جمال عبدالوهاب"},null,""]
[8,null,"جمال محمد جمال عبدالمجيد",31409271402515,"2014-09-27",4,0,9,"ذكر",null,{"$f":"IFERROR(Father_Name(C49),\"\")","v":"محمد جمال عبدالمجيد"},null,""]
[9,null,"حازم متولي عبدالعزيز متولي",31311281403838,"2013-11-28",3,10,9,"ذكر",null,{"$f":"IFERROR(Father_Name(C50),\"\")","v":"متولي عبدالعزيز متولي"},null,""]
[10,null,"حسام حماده محمد عبد الحي محمد سليمان",31402021403376,"2014-02-02",29,7,9,"ذكر",null,{"$f":"IFERROR(Father_Name(C51),\"\")","v":"حماده محمد عبد الحي محمد سليمان"},null,""]
[11,null,"حسن رضا حسن عبدالرحمن",31403121403019,"2014-03-12",19,6,9,"ذكر",null,{"$f":"IFERROR(Father_Name(C52),\"\")","v":"رضا حسن عبدالرحمن"},null,""]
[12,null,"حسن عدنان حسن متولىى امام",31405251406373,"2014-05-25",6,4,9,"ذكر",null,{"$f":"IFERROR(Father_Name(C53),\"\")","v":"عدنان حسن متولىى امام"},null,""]
[13,null,"حمزة عبدالوهاب عيد عبدالوهاب",31404041404576,"2014-04-04",27,5,9,"ذكر",null,{"$f":"IFERROR(Father_Name(C54),\"\")","v":"عبدالوهاب عيد عبدالوهاب"},null,""]
[14,null,"حمزه عبدالرحمن محمد عبدالرحمن",31408271403116,"2014-08-27",4,1,9,"ذكر",null,{"$f":"IFERROR(Father_Name(C55),\"\")","v":"عبدالرحمن محمد عبدالرحمن"},null,""]
[15,null,"حمزه عصام محمد لبيب عبد المقصود زيدان",31402221403753,"2014-02-22",9,7,9,"ذكر",null,{"$f":"IFERROR(Father_Name(C56),\"\")","v":"عصام محمد لبيب عبد المقصود زيدان"},null,""]
[16,null,"رأفت محمد رأفت عبدالوهاب عدلى",31405141401678,"2014-05-14",17,4,9,"ذكر",null,{"$f":"IFERROR(Father_Name(C57),\"\")","v":"محمد رأفت عبدالوهاب عدلى"},null,""]
[17,null,"رجب محمد رجب شحاته حسين عجاج",31407271402776,"2014-07-27",4,2,9,"ذكر",null,{"$f":"IFERROR(Father_Name(C58),\"\")","v":"محمد رجب شحاته حسين عجاج"},null,""]
[18,null,"رشاد احمد عبدالمعز رشاد",31409011401892,"2014-09-01",0,1,9,"ذكر",null,{"$f":"IFERROR(Father_Name(C59),\"\")","v":"احمد عبدالمعز رشاد"},null,""]
[19,null,"رشاد محمد رشاد طه",31310241403596,"2013-10-24",7,11,9,"ذكر",null,{"$f":"IFERROR(Father_Name(C60),\"\")","v":"محمد رشاد طه"},null,""]
[20,null,"زياد ابراهيم السيد ابراهيم",31311011405111,"2013-11-01",0,11,9,"ذكر",null,{"$f":"IFERROR(Father_Name(C61),\"\")","v":"ابراهيم السيد ابراهيم"},null,""]
[21,null,"زياد أنور مجدي عبد الرحمن علي أبو العينين",31312071404617,"2013-12-07",24,9,9,"ذكر",null,{"$f":"IFERROR(Father_Name(C62),\"\")","v":"أنور مجدي عبد الرحمن علي أبو العينين"},null,""]
[22,null,"زياد ايمن عبدالرحمن عبدالسميع",31310101402654,"2013-10-10",21,11,9,"ذكر",null,{"$f":"IFERROR(Father_Name(C63),\"\")","v":"ايمن عبدالرحمن عبدالسميع"},null,""]
[23,null,"زياد حازم عبدالعزيز عبدالشكور",31401191404176,"2014-01-19",12,8,9,"ذكر",null,{"$f":"IFERROR(Father_Name(C64),\"\")","v":"حازم عبدالعزيز عبدالشكور"},null,""]
[24,null,"زياد عادل حلمى عبدالرحمن",31409051404339,"2014-09-05",26,0,9,"ذكر",null,{"$f":"IFERROR(Father_Name(C65),\"\")","v":"عادل حلمى عبدالرحمن"},null,""]
[25,null,"زياد عبدالمنعم أحمد محمد",31403151404451,"2014-03-15",16,6,9,"ذكر",null,{"$f":"IFERROR(Father_Name(C66),\"\")","v":"عبدالمنعم أحمد محمد"},null,""]
[26,null,"زياد هاني عادل ",31401191404192,"2014-01-19",12,8,9,"ذكر",null,{"$f":"IFERROR(Father_Name(C67),\"\")","v":"هاني عادل"},null,""]
[27,null,"سعد محمد إبراهيم حسن السيد حجاجي",31407021403831,"2014-07-02",29,2,9,"ذكر",null,{"$f":"IFERROR(Father_Name(C68),\"\")","v":"محمد إبراهيم حسن السيد حجاجي"},null,""]
[28,null,"سعد محمد سعد سعيد",31406031401997,"2014-06-03",28,3,9,"ذكر",null,{"$f":"IFERROR(Father_Name(C69),\"\")","v":"محمد سعد سعيد"},null,""]
[29,null,"سعيد أحمد سعيد عبد الفتاح سعيد",31311021404318,"2013-11-02",29,10,9,"ذكر",null,{"$f":"IFERROR(Father_Name(C70),\"\")","v":"أحمد سعيد عبد الفتاح سعيد"},null,""]
[30,null,"سعيد محمد سعيد عبدالفتاح",31409241403517,"2014-09-24",7,0,9,"ذكر",null,{"$f":"IFERROR(Father_Name(C71),\"\")","v":"محمد سعيد عبدالفتاح"},null,""]
[31,null,"سليم طه محمود عبدالفتاح",31404171402591,{"$f":"IFERROR(DATE(IF(LEFT(D72,1)*1=3,20,19)&MID(D72,2,2),MID(D72,4,2),MID(D72,6,2)),\"\")","v":"2014-04-17"},14,5,9,"ذكر",null,{"$f":"IFERROR(Father_Name(C72),\"\")","v":"طه محمود عبدالفتاح"},null,""]
[32,null,"سمير تامر سمير هلول",31401011406818,"2014-01-01",{"$f":"IFERROR(DATEDIF(E73,$K$1,\"MD\"),\"\")","v":0},{"$f":"IFERROR(DATEDIF(E73,$K$1,\"YM\"),\"\")","v":9},{"$f":"IFERROR(DATEDIF(E73,$K$1,\"Y\"),\"\")","v":9},{"$f":"IFERROR(IF(ISODD(MID(D73,13,1)),\"ذكر\",\"انثى\"),\"\")","v":"ذكر"},null,{"$f":"IFERROR(Father_Name(C73),\"\")","v":"تامر سمير هلول"},null,{"$f":"IF(C73=\"\",\"\",IF(COUNTIF($K$8:$K$1000,K73)>1,\"توئم\",\"\"))","v":""}]
[33,null,"سيف الدين محمود مصطفى عبدالعزيز سلطوح",31409231403691,"2014-09-23",8,0,9,"ذكر",null,{"$f":"IFERROR(Father_Name(C74),\"\")","v":"محمود مصطفى عبدالعزيز سلطوح"},null,""]
[34,null,"سيف السيد فتحي عبدالسلام",31408071402999,"2014-08-07",24,1,9,"ذكر",null,{"$f":"IFERROR(Father_Name(C75),\"\")","v":"السيد فتحي عبدالسلام"},null,""]
[1,null,"صالح فتحي ابراهيم محمد",31406251405195,"2014-06-25",6,3,9,"ذكر",null,{"$f":"IFERROR(Father_Name(C76),\"\")","v":"فتحي ابراهيم محمد"},null,""]
[2,null,"صبحي عبد الفتاح عبد التواب محمد",31408241401356,"2014-08-24",7,1,9,"ذكر",null,{"$f":"IFERROR(Father_Name(C77),\"\")","v":"عبد الفتاح عبد التواب محمد"},null,""]
[3,null,"صبحي محمد صبحي حسن",31407261402751,"2014-07-26",5,2,9,"ذكر",null,{"$f":"IFERROR(Father_Name(C78),\"\")","v":"محمد صبحي حسن"},null,""]
[4,null,"صلاح احمد صلاح عبدالمنعم",31312221404858,"2013-12-22",9,9,9,"ذكر",null,{"$f":"IFERROR(Father_Name(C79),\"\")","v":"احمد صلاح عبدالمنعم"},null,""]
[5,null,"صوابي أحمد صوابي عبد الفتاح الصوابي",31403261404554,"2014-03-26",5,6,9,"ذكر",null,{"$f":"IFERROR(Father_Name(C80),\"\")","v":"أحمد صوابي عبد الفتاح الصوابي"},null,""]
[6,null,"صياد أشرف صياد رزق سرحان",31407251402656,"2014-07-25",6,2,9,"ذكر",null,{"$f":"IFERROR(Father_Name(C81),\"\")","v":"أشرف صياد رزق سرحان"},null,""]
[7,null,"طه عبدالرحمن طه حسن",31405071402116,"2014-05-07",24,4,9,"ذكر",null,{"$f":"IFERROR(Father_Name(C82),\"\")","v":"عبدالرحمن طه حسن"},null,""]
[8,null,"طه فتحي طه نبيه",31310061404713,"2013-10-06",25,11,9,"ذكر",null,{"$f":"IFERROR(Father_Name(C83),\"\")","v":"فتحي طه نبيه"},null,""]
[9,null,"ظه خالد طه خفاجى",31409091405796,"2014-09-09",22,0,9,"ذكر",null,{"$f":"IFERROR(Father_Name(C84),\"\")","v":"خالد طه خفاجى"},null,""]
[10,null,"عبد الرحمن إسلام صبحي أبو زيد شحاته",31401111403476,"2014-01-11",20,8,9,"ذكر",null,{"$f":"IFERROR(Father_Name(C85),\"\")","v":"إسلام صبحي أبو زيد شحاته"},null,""]
[11,null,"عبد الوهاب السيد عبد الوهاب السيد",31408311400476,"2014-08-31",0,1,9,"ذكر",null,{"$f":"IFERROR(Father_Name(C86),\"\")","v":"السيد عبد الوهاب السيد"},null,""]
[12,null,"عبدالحليم عادل محمود عبدالرحمن",31401251405673,"2014-01-25",6,8,9,"ذكر",null,{"$f":"IFERROR(Father_Name(C87),\"\")","v":"عادل محمود عبدالرحمن"},null,""]
[13,null,"عبدالرحمن اشرف عبدالرحمن ",31310241403553,"2013-10-24",7,11,9,"ذكر",null,{"$f":"IFERROR(Father_Name(C88),\"\")","v":"اشرف عبدالرحمن"},null,""]
[14,null,"عبدالرحمن عبدالمعبود محمد بيومى محمد سرحان",31408091402073,"2014-08-09",22,1,9,"ذكر",null,{"$f":"IFERROR(Father_Name(C89),\"\")","v":"عبدالمعبود محمد بيومى محمد سرحان"},null,""]
[15,null,"عبدالرحمن علي عبدالرحمن رشاد",31409081402934,"2014-09-08",23,0,9,"ذكر",null,{"$f":"IFERROR(Father_Name(C90),\"\")","v":"علي عبدالرحمن رشاد"},null,""]
[16,null,"عبدالرحمن محمد صبحي كمال",31408161401932,"2014-08-16",15,1,9,"ذكر",null,{"$f":"IFERROR(Father_Name(C91),\"\")","v":"محمد صبحي كمال"},null,""]
[17,null,"عبدالرحمن محمود عبدالرحمن رشاد",31406151405333,"2014-06-15",16,3,9,"ذكر",null,{"$f":"IFERROR(Father_Name(C92),\"\")","v":"محمود عبدالرحمن رشاد"},null,""]
[18,null,"عبدالرحمن ممدوح رشاد محمد السيد ",31402211402414,"2014-02-21",10,7,9,"ذكر",null,{"$f":"IFERROR(Father_Name(C93),\"\")","v":"ممدوح رشاد محمد السيد"},null,""]
[19,null,"عبدالرحمن ياسر محمد أمين",31404261402973,"2014-04-26",5,5,9,"ذكر",null,{"$f":"IFERROR(Father_Name(C94),\"\")","v":"ياسر محمد أمين"},null,""]
[20,null,"عبدالرحمن يسرى محمود عبدالفتاح",31409051404312,"2014-09-05",26,0,9,"ذكر",null,{"$f":"IFERROR(Father_Name(C95),\"\")","v":"يسرى محمود عبدالفتاح"},null,""]
[21,null,"عبدالفتاح ماهر عبدالرحمن محمد",31403101405694,"2014-03-10",21,6,9,"ذكر",null,{"$f":"IFERROR(Father_Name(C96),\"\")","v":"ماهر عبدالرحمن محمد"},null,""]
[22,null,"عبدالله خالد مصلح الشيخ",31402261401915,"2014-02-26",5,7,9,"ذكر",null,{"$f":"IFERROR(Father_Name(C97),\"\")","v":"خالد مصلح الشيخ"},null,""]
[23,null,"عبدالمجيد احمد عبدالمجيد امين سويلم",31410011407414,"2014-10-01",0,0,9,"ذكر",null,{"$f":"IFERROR(Father_Name(C98),\"\")","v":"احمد عبدالمجيد امين سويلم"},null,""]
[24,null,"على محمد عزت مهدى سلامه",31401271401291,"2014-01-27",4,8,9,"ذكر",null,{"$f":"IFERROR(Father_Name(C99),\"\")","v":"محمد عزت مهدى سلامه"},null,""]
[25,null,"علي احمد عبدالمقصود محمد علي شاهين",31311211403857,"2013-11-21",10,10,9,"ذكر",null,{"$f":"IFERROR(Father_Name(C100),\"\")","v":"احمد عبدالمقصود محمد علي شاهين"},null,""]
[26,null,"علي عاطف محمود محمد",31310251402954,"2013-10-25",6,11,9,"ذكر",null,{"$f":"IFERROR(Father_Name(C101),\"\")","v":"عاطف محمود محمد"},null,""]
[27,null,"عماد أحمد حمدي أحمد محمد عياد",31311121404536,"2013-11-12",19,10,9,"ذكر",null,{"$f":"IFERROR(Father_Name(C102),\"\")","v":"أحمد حمدي أحمد محمد عياد"},null,""]
[28,null,"عمار ماهر مصطفى محمود السيد الأكشر",31405280100615,"2014-05-28",3,4,9,"ذكر",null,{"$f":"IFERROR(Father_Name(C103),\"\")","v":"ماهر مصطفى محمود السيد الأكشر"},null,""]
[29,null,"عمار محمد أحمد عبدالمعطي",31405121401736,"2014-05-12",19,4,9,"ذكر",null,{"$f":"IFERROR(Father_Name(C104),\"\")","v":"محمد أحمد عبدالمعطي"},null,""]
[30,null,"عمار ياسر السيد محمد برقوقي زيدان",31407101404677,"2014-07-10",21,2,9,"ذكر",null,{"$f":"IFERROR(Father_Name(C105),\"\")","v":"ياسر السيد محمد برقوقي زيدان"},null,""]
[31,null,"عمر أحمد سيد عبد المجيد السيد",31407011408258,"2014-07-01",0,3,9,"ذكر",null,{"$f":"IFERROR(Father_Name(C106),\"\")","v":"أحمد سيد عبد المجيد السيد"},null,""]
[32,null,"عمر احمد عمر سعيد",31406011406038,"2014-06-01",0,4,9,"ذكر",null,{"$f":"IFERROR(Father_Name(C107),\"\")","v":"احمد عمر سعيد"},null,""]
[33,null,"عمر احمد محمد الطوخي",31401161401792,"2014-01-16",15,8,9,"ذكر",null,{"$f":"IFERROR(Father_Name(C108),\"\")","v":"احمد محمد الطوخي"},null,""]
[1,null,"عمر احمد يوسف فتحي",31403011407914,"2014-03-01",0,7,9,"ذكر",null,{"$f":"IFERROR(Father_Name(C109),\"\")","v":"احمد يوسف فتحي"},null,""]
[2,null,"عمر الصياد السيد سعيد ساكت",31311050107675,"2013-11-05",26,10,9,"ذكر",null,{"$f":"IFERROR(Father_Name(C110),\"\")","v":"الصياد السيد سعيد ساكت"},null,""]
[3,null,"عمر شريف الهادي عبدالعزيز برقوقي",31406191403791,"2014-06-19",12,3,9,"ذكر",null,{"$f":"IFERROR(Father_Name(C111),\"\")","v":"شريف الهادي عبدالعزيز برقوقي"},null,""]
[4,null,"عمر شعبان عبدالنبي حسان",31406051403635,"2014-06-05",26,3,9,"ذكر",null,{"$f":"IFERROR(Father_Name(C112),\"\")","v":"شعبان عبدالنبي حسان"},null,""]
[5,null,"عمر عبدالحليم محمد عبدالحليم",31311161404458,"2013-11-16",15,10,9,"ذكر",null,{"$f":"IFERROR(Father_Name(C113),\"\")","v":"عبدالحليم محمد عبدالحليم"},null,""]
[6,null,"عمر عماد عبدالرحمن محمد",31407101404634,"2014-07-10",21,2,9,"ذكر",null,{"$f":"IFERROR(Father_Name(C114),\"\")","v":"عماد عبدالرحمن محمد"},null,""]
[7,null,"عمر محمد السيد محمد خالد",31408161401916,"2014-08-16",15,1,9,"ذكر",null,{"$f":"IFERROR(Father_Name(C115),\"\")","v":"محمد السيد محمد خالد"},null,""]
[8,null,"عمر محمد كمال محمود",31408281402495,"2014-08-28",3,1,9,"ذكر",null,{"$f":"IFERROR(Father_Name(C116),\"\")","v":"محمد كمال محمود"},null,""]
[9,null,"عمر ياسر حمدي عبدالحسيب",31310191403174,"2013-10-19",12,11,9,"ذكر",null,{"$f":"IFERROR(Father_Name(C117),\"\")","v":"ياسر حمدي عبدالحسيب"},null,""]
[10,null,"عمر ياسر محمد معاز حسنين",31408281402517,"2014-08-28",3,1,9,"ذكر",null,{"$f":"IFERROR(Father_Name(C118),\"\")","v":"ياسر محمد معاز حسنين"},null,""]
[11,null,"عمرو اشرف عبدالرحمن السعيد",31310241403537,"2013-10-24",7,11,9,"ذكر",null,{"$f":"IFERROR(Father_Name(C119),\"\")","v":"اشرف عبدالرحمن السعيد"},null,""]
[12,null,"عمرو محمد عواد الهادي",31404121401233,"2014-04-12",19,5,9,"ذكر",null,{"$f":"IFERROR(Father_Name(C120),\"\")","v":"محمد عواد الهادي"},null,""]
[13,null,"عمرو ممدوح رشاد محمد السيد زيدان",31402211402392,"2014-02-21",10,7,9,"ذكر",null,{"$f":"IFERROR(Father_Name(C121),\"\")","v":"ممدوح رشاد محمد السيد زيدان"},null,""]
[14,null,"فرحات اشرف فرحات محمد",31312241401316,"2013-12-24",7,9,9,"ذكر",null,{"$f":"IFERROR(Father_Name(C122),\"\")","v":"اشرف فرحات محمد"},null,""]
[15,null,"فريد تامر فريد عبدالفتاح",31401011406796,"2014-01-01",0,9,9,"ذكر",null,{"$f":"IFERROR(Father_Name(C123),\"\")","v":"تامر فريد عبدالفتاح"},null,""]
[16,null,"فهد إبراهيم صبري محمود زكي حبيب",31401261401331,"2014-01-26",5,8,9,"ذكر",null,{"$f":"IFERROR(Father_Name(C124),\"\")","v":"إبراهيم صبري محمود زكي حبيب"},null,""]
[17,null,"كريم عياد عبد الرشيد عبد الفتاح",31406091403271,"2014-06-09",22,3,9,"ذكر",null,{"$f":"IFERROR(Father_Name(C125),\"\")","v":"عياد عبد الرشيد عبد الفتاح"},null,""]
[18,null,"كريم مصلح محمد الهادي",31310301403876,"2013-10-30",1,11,9,"ذكر",null,{"$f":"IFERROR(Father_Name(C126),\"\")","v":"مصلح محمد الهادي"},null,""]
[19,null,"كمال احمد محمد محمد",31404151400932,"2014-04-15",16,5,9,"ذكر",null,{"$f":"IFERROR(Father_Name(C127),\"\")","v":"احمد محمد محمد"},null,""]
[20,null,"كمال محمد كمال محمد",31406301403954,"2014-06-30",1,3,9,"ذكر",null,{"$f":"IFERROR(Father_Name(C128),\"\")","v":"محمد كمال محمد"},null,""]
[21,null,"مازن محمد عرفه محمد عبد الفتاح زيدان",31407281401832,"2014-07-28",3,2,9,"ذكر",null,{"$f":"IFERROR(Father_Name(C129),\"\")","v":"محمد عرفه محمد عبد الفتاح زيدان"},null,""]
[22,null,"مالك محمد جاد حسيني",31406201404058,"2014-06-20",11,3,9,"ذكر",null,{"$f":"IFERROR(Father_Name(C130),\"\")","v":"محمد جاد حسيني"},null,""]
[23,null,"مالك وجيه عبد الفتاح عبد الله شرف الدين",31405201404698,"2014-05-20",11,4,9,"ذكر",null,{"$f":"IFERROR(Father_Name(C131),\"\")","v":"وجيه عبد الفتاح عبد الله شرف الدين"},null,""]
[24,null,"مجدي محمد مجدى مكاوي",31406221405255,"2014-06-22",9,3,9,"ذكر",null,{"$f":"IFERROR(Father_Name(C132),\"\")","v":"محمد مجدى مكاوي"},null,""]
[25,null,"محمد احمد عبدالمجيد عبدالفتاح",31401041403899,"2014-01-04",27,8,9,"ذكر",null,{"$f":"IFERROR(Father_Name(C133),\"\")","v":"احمد عبدالمجيد عبدالفتاح"},null,""]
[26,null,"محمد احمد عبدالوهاب طه",31310101403812,"2013-10-10",21,11,9,"ذكر",null,{"$f":"IFERROR(Father_Name(C134),\"\")","v":"احمد عبدالوهاب طه"},null,""]
[27,null,"محمد احمد محمد عبدالعليم",31310181402315,"2013-10-18",13,11,9,"ذكر",null,{"$f":"IFERROR(Father_Name(C135),\"\")","v":"احمد محمد عبدالعليم"},null,""]
[28,null,"محمد اسامة عبدالودود حافظ",31406221405298,{"$f":"IFERROR(DATE(IF(LEFT(D136,1)*1=3,20,19)&MID(D136,2,2),MID(D136,4,2),MID(D136,6,2)),\"\")","v":"2014-06-22"},9,3,9,"ذكر",null,{"$f":"IFERROR(Father_Name(C136),\"\")","v":"اسامة عبدالودود حافظ"},null,""]
[29,null,"محمد السيد شرف الدين السيد عبدالرحمن",31311051405696,"2013-11-05",{"$f":"IFERROR(DATEDIF(E137,$K$1,\"MD\"),\"\")","v":26},{"$f":"IFERROR(DATEDIF(E137,$K$1,\"YM\"),\"\")","v":10},{"$f":"IFERROR(DATEDIF(E137,$K$1,\"Y\"),\"\")","v":9},{"$f":"IFERROR(IF(ISODD(MID(D137,13,1)),\"ذكر\",\"انثى\"),\"\")","v":"ذكر"},null,{"$f":"IFERROR(Father_Name(C137),\"\")","v":"السيد شرف الدين السيد عبدالرحمن"},null,{"$f":"IF(C137=\"\",\"\",IF(COUNTIF($K$8:$K$1000,K137)>1,\"توئم\",\"\"))","v":""}]
[30,null,"محمد السيد محمود الهادى عابد زيدان",31404091402078,"2014-04-09",22,5,9,"ذكر",null,{"$f":"IFERROR(Father_Name(C138),\"\")","v":"السيد محمود الهادى عابد زيدان"},null,""]
[31,null,"محمد الشحات محمد حسنين عزام",31403211404979,"2014-03-21",10,6,9,"ذكر",null,{"$f":"IFERROR(Father_Name(C139),\"\")","v":"الشحات محمد حسنين عزام"},null,""]
[32,null,"محمد امين السيد امين",31401311401532,"2014-01-31",0,8,9,"ذكر",null,{"$f":"IFERROR(Father_Name(C140),\"\")","v":"امين السيد امين"},null,""]
[1,null,"محمد أيمن محمد محمد حسانين يوسف",31310251404752,"2013-10-25",6,11,9,"ذكر",null,{"$f":"IFERROR(Father_Name(C141),\"\")","v":"أيمن محمد محمد حسانين يوسف"},null,""]
[2,null,"محمد ايهاب احمد يس",31407261402697,"2014-07-26",5,2,9,"ذكر",null,{"$f":"IFERROR(Father_Name(C142),\"\")","v":"ايهاب احمد يس"},null,""]
[3,null,"محمد إيهاب عصام الدين عبد الوهاب أحمد",31404141402031,"2014-04-14",17,5,9,"ذكر",null,{"$f":"IFERROR(Father_Name(C143),\"\")","v":"إيهاب عصام الدين عبد الوهاب أحمد"},null,""]
[4,null,"محمد تامر السيد محمد برقوقي ",31311241403592,"2013-11-24",7,10,9,"ذكر",null,{"$f":"IFERROR(Father_Name(C144),\"\")","v":"تامر السيد محمد برقوقي"},null,""]
[5,null,"محمد حسام الدين محمد عفيفى محمد زيد",31404218800973,"2014-04-21",10,5,9,"ذكر",null,{"$f":"IFERROR(Father_Name(C145),\"\")","v":"حسام الدين محمد عفيفى محمد زيد"},null,""]
[6,null,"محمد رفاعي عبد الرحمن عفيفي",31404011404911,"2014-04-01",0,6,9,"ذكر",null,{"$f":"IFERROR(Father_Name(C146),\"\")","v":"رفاعي عبد الرحمن عفيفي"},null,""]
[7,null,"محمد رمضان محمد شوقي",31408031401914,"2014-08-03",28,1,9,"ذكر",null,{"$f":"IFERROR(Father_Name(C147),\"\")","v":"رمضان محمد شوقي"},null,""]
[8,null,"محمد سامى شرف محمد محمد شرف",31406121402356,"2014-06-12",19,3,9,"ذكر",null,{"$f":"IFERROR(Father_Name(C148),\"\")","v":"سامى شرف محمد محمد شرف"},null,""]
[9,null,"محمد عبد الفتاح عبد الرحمن رزق",31406031401954,"2014-06-03",28,3,9,"ذكر",null,{"$f":"IFERROR(Father_Name(C149),\"\")","v":"عبد الفتاح عبد الرحمن رزق"},null,""]
[10,null,"محمد عبد المنعم احمد عبد المنعم",31402241402753,"2014-02-24",7,7,9,"ذكر",null,{"$f":"IFERROR(Father_Name(C150),\"\")","v":"عبد المنعم احمد عبد المنعم"},null,""]
[11,null,"محمد عبدالرحمن شوقي عبدالرحمن",31408291401098,"2014-08-29",2,1,9,"ذكر",null,{"$f":"IFERROR(Father_Name(C151),\"\")","v":"عبدالرحمن شوقي عبدالرحمن"},null,""]
[12,null,"محمد عبدالفتاح محمد حامد",31401131401518,"2014-01-13",18,8,9,"ذكر",null,{"$f":"IFERROR(Father_Name(C152),\"\")","v":"عبدالفتاح محمد حامد"},null,""]
[13,null,"محمد عبدالله السيد عبدالحميد زيدان",31404071402217,"2014-04-07",24,5,9,"ذكر",null,{"$f":"IFERROR(Father_Name(C153),\"\")","v":"عبدالله السيد عبدالحميد زيدان"},null,""]
[14,null,"محمد عماد الدين جودة عبدالهادى عبدالفتاح سرحان",31312201403375,"2013-12-20",11,9,9,"ذكر",null,{"$f":"IFERROR(Father_Name(C154),\"\")","v":"عماد الدين جودة عبدالهادى عبدالفتاح سرحان"},null,""]
[15,null,"محمد فتحى محمد على محمد عامر",31404091402116,"2014-04-09",22,5,9,"ذكر",null,{"$f":"IFERROR(Father_Name(C155),\"\")","v":"فتحى محمد على محمد عامر"},null,""]
[16,null,"محمد محمود السيد خضر",31401021400672,"2014-01-02",29,8,9,"ذكر",null,{"$f":"IFERROR(Father_Name(C156),\"\")","v":"محمود السيد خضر"},null,""]
[17,null,"محمد محمود محمد محمود محمد طبيخ",31402231402453,"2014-02-23",8,7,9,"ذكر",null,{"$f":"IFERROR(Father_Name(C157),\"\")","v":"محمود محمد محمود محمد طبيخ"},null,""]
[18,null,"محمد ممدوح رضا فرحات ابراهيم",31405061402657,"2014-05-06",25,4,9,"ذكر",null,{"$f":"IFERROR(Father_Name(C158),\"\")","v":"ممدوح رضا فرحات ابراهيم"},null,""]
[19,null,"محمد ممدوح عبدالمولي محمد",31404031400955,"2014-04-03",28,5,9,"ذكر",null,{"$f":"IFERROR(Father_Name(C159),\"\")","v":"ممدوح عبدالمولي محمد"},null,""]
[20,null,"محمد منتصر سويلم الهادي",31407141401719,"2014-07-14",17,2,9,"ذكر",null,{"$f":"IFERROR(Father_Name(C160),\"\")","v":"منتصر سويلم الهادي"},null,""]
[21,null,"محمد هاني فرحات طه",31312121406756,"2013-12-12",19,9,9,"ذكر",null,{"$f":"IFERROR(Father_Name(C161),\"\")","v":"هاني فرحات طه"},null,""]
[22,null,"محمد ياسر محمد سعيد محمد حسن زيدان",31407301401451,"2014-07-30",1,2,9,"ذكر",null,{"$f":"IFERROR(Father_Name(C162),\"\")","v":"ياسر محمد سعيد محمد حسن زيدان"},null,""]
[23,null,"محمود السيد عبد الحليم عبد الرحمن",31311171404839,"2013-11-17",14,10,9,"ذكر",null,{"$f":"IFERROR(Father_Name(C163),\"\")","v":"السيد عبد الحليم عبد الرحمن"},null,""]
[24,null,"محمود جمال عبدالوهاب رفاعي",31407301401435,"2014-07-30",1,2,9,"ذكر",null,{"$f":"IFERROR(Father_Name(C164),\"\")","v":"جمال عبدالوهاب رفاعي"},null,""]
[25,null,"محمود حسنين حسن رزق",31403021400993,"2014-03-02",29,6,9,"ذكر",null,{"$f":"IFERROR(Father_Name(C165),\"\")","v":"حسنين حسن رزق"},null,""]
[26,null,"محمود خالد صبحي حافظ",31401181400555,"2014-01-18",13,8,9,"ذكر",null,{"$f":"IFERROR(Father_Name(C166),\"\")","v":"خالد صبحي حافظ"},null,""]
[27,null,"محمود شريف عبدالفتاح محمد",31403241402652,"2014-03-24",7,6,9,"ذكر",null,{"$f":"IFERROR(Father_Name(C167),\"\")","v":"شريف عبدالفتاح محمد"},null,""]
[28,null,"محمود عبدالناصر حسنين ابراهيم حسنين",31310251402938,"2013-10-25",6,11,9,"ذكر",null,{"$f":"IFERROR(Father_Name(C168),\"\")","v":"عبدالناصر حسنين ابراهيم حسنين"},null,""]
[29,null,"محمود محمد كردى محمد كردى قلش",31403201403435,"2014-03-20",11,6,9,"ذكر",null,{"$f":"IFERROR(Father_Name(C169),\"\")","v":"محمد كردى محمد كردى قلش"},null,""]
[30,null,"محمود محمد محمود عبد الله السيد شرع",31404041401593,"2014-04-04",27,5,9,"ذكر",null,{"$f":"IFERROR(Father_Name(C170),\"\")","v":"محمد محمود عبد الله السيد شرع"},null,""]
[31,null,"مروان احمد حافظ الصياد مهدى",31405221404139,"2014-05-22",9,4,9,"ذكر",null,{"$f":"IFERROR(Father_Name(C171),\"\")","v":"احمد حافظ الصياد مهدى"},null,""]
[32,null,"مروان احمد سويلم احمد",31409051404258,"2014-09-05",26,0,9,"ذكر",null,{"$f":"IFERROR(Father_Name(C172),\"\")","v":"احمد سويلم احمد"},null,""]
[1,null,"مروان أحمد عبدالمنعم أحمد جاد",31401251405657,"2014-01-25",6,8,9,"ذكر",null,{"$f":"IFERROR(Father_Name(C173),\"\")","v":"أحمد عبدالمنعم أحمد جاد"},null,""]
[2,null,"مروان احمد فتحي احمد",31408031406037,"2014-08-03",28,1,9,"ذكر",null,{"$f":"IFERROR(Father_Name(C174),\"\")","v":"احمد فتحي احمد"},null,""]
[3,null,"مروان ايمن السيد فتحي",31405131400851,"2014-05-13",18,4,9,"ذكر",null,{"$f":"IFERROR(Father_Name(C175),\"\")","v":"ايمن السيد فتحي"},null,""]
[4,null,"مروان خالد صبحي محمود",31312201403391,"2013-12-20",11,9,9,"ذكر",null,{"$f":"IFERROR(Father_Name(C176),\"\")","v":"خالد صبحي محمود"},null,""]
[5,null,"مروان صبحي حسين ابراهيم",31407091403839,"2014-07-09",22,2,9,"ذكر",null,{"$f":"IFERROR(Father_Name(C177),\"\")","v":"صبحي حسين ابراهيم"},null,""]
[6,null,"مروان عبدالرحمن شعبان عبدالرحمن",31405201404736,"2014-05-20",11,4,9,"ذكر",null,{"$f":"IFERROR(Father_Name(C178),\"\")","v":"عبدالرحمن شعبان عبدالرحمن"},null,""]
[7,null,"مروان عبدالمنعم عبدالله عبدالمنعم",31310131400613,"2013-10-13",18,11,9,"ذكر",null,{"$f":"IFERROR(Father_Name(C179),\"\")","v":"عبدالمنعم عبدالله عبدالمنعم"},null,""]
[8,null,"مروان محمد عبدالحسيب محمد",31409201405711,"2014-09-20",11,0,9,"ذكر",null,{"$f":"IFERROR(Father_Name(C180),\"\")","v":"محمد عبدالحسيب محمد"},null,""]
[9,null,"مروان محمد عيد سلامه",31405041402359,"2014-05-04",27,4,9,"ذكر",null,{"$f":"IFERROR(Father_Name(C181),\"\")","v":"محمد عيد سلامه"},null,""]
[10,null,"مصطفى احمد فوزى عبدالفتاح السيد",31401091404438,"2014-01-09",22,8,9,"ذكر",null,{"$f":"IFERROR(Father_Name(C182),\"\")","v":"احمد فوزى عبدالفتاح السيد"},null,""]
[11,null,"مصطفى اسلام السيد السعيد مصطفى",31405071402051,"2014-05-07",24,4,9,"ذكر",null,{"$f":"IFERROR(Father_Name(C183),\"\")","v":"اسلام السيد السعيد مصطفى"},null,""]
[12,null,"مصطفى سعد عبدالفتاح محمد سعد",31408181403699,"2014-08-18",13,1,9,"ذكر",null,{"$f":"IFERROR(Father_Name(C184),\"\")","v":"سعد عبدالفتاح محمد سعد"},null,""]
[13,null,"مصطفى صبحي عبد الحكيم محمد أحمد عبد الحكيم",31406221405271,"2014-06-22",9,3,9,"ذكر",null,{"$f":"IFERROR(Father_Name(C185),\"\")","v":"صبحي عبد الحكيم محمد أحمد عبد الحكيم"},null,""]
[14,null,"مصطفى محمد ناصف عفيفي محمد عبد الفتاح",31401271401313,"2014-01-27",4,8,9,"ذكر",null,{"$f":"IFERROR(Father_Name(C186),\"\")","v":"محمد ناصف عفيفي محمد عبد الفتاح"},null,""]
[15,null,"مصطفي عصام الدين جودة",31401011406699,"2014-01-01",0,9,9,"ذكر",null,{"$f":"IFERROR(Father_Name(C187),\"\")","v":"عصام الدين جودة"},null,""]
[16,null,"معتصم كمال محمد عبدالفتاح",31403211404995,"2014-03-21",10,6,9,"ذكر",null,{"$f":"IFERROR(Father_Name(C188),\"\")","v":"كمال محمد عبدالفتاح"},null,""]
[17,null,"مهاب ابراهيم عطيه ابراهيم",31408161405571,"2014-08-16",15,1,9,"ذكر",null,{"$f":"IFERROR(Father_Name(C189),\"\")","v":"ابراهيم عطيه ابراهيم"},null,""]
[18,null,"نبيل الحسن نبيل السيد",31406131401358,"2014-06-13",18,3,9,"ذكر",null,{"$f":"IFERROR(Father_Name(C190),\"\")","v":"الحسن نبيل السيد"},null,""]
[19,null,"يس محمد عبدالمنعم الشحات",31406281403553,"2014-06-28",3,3,9,"ذكر",null,{"$f":"IFERROR(Father_Name(C191),\"\")","v":"محمد عبدالمنعم الشحات"},null,""]
[20,null,"يسن سرحان فاروق يسن عبد الوهاب",31409221404096,"2014-09-22",9,0,9,"ذكر",null,{"$f":"IFERROR(Father_Name(C192),\"\")","v":"سرحان فاروق يسن عبد الوهاب"},null,""]
[21,null,"يوسف ايهاب اسماعيل عبدالمغنى",31406251405152,"2014-06-25",6,3,9,"ذكر",null,{"$f":"IFERROR(Father_Name(C193),\"\")","v":"ايهاب اسماعيل عبدالمغنى"},null,""]
[22,null,"يوسف حماده عبد الرحمن عبد المعطي",31310291403414,"2013-10-29",2,11,9,"ذكر",null,{"$f":"IFERROR(Father_Name(C194),\"\")","v":"حماده عبد الرحمن عبد المعطي"},null,""]
[23,null,"يوسف خفاجي عبدالمنعم عبدالحليم",31403211405037,"2014-03-21",10,6,9,"ذكر",null,{"$f":"IFERROR(Father_Name(C195),\"\")","v":"خفاجي عبدالمنعم عبدالحليم"},null,""]
[24,null,"يوسف سامي محمد يوسف",31408281402533,"2014-08-28",3,1,9,"ذكر",null,{"$f":"IFERROR(Father_Name(C196),\"\")","v":"سامي محمد يوسف"},null,""]
[25,null,"يوسف عاطف عبدالعزيز عبدالرشيد",31402271401336,"2014-02-27",4,7,9,"ذكر",null,{"$f":"IFERROR(Father_Name(C197),\"\")","v":"عاطف عبدالعزيز عبدالرشيد"},null,""]
[26,null,"يوسف عصام حسن سيد أحمد",31403061400775,"2014-03-06",25,6,9,"ذكر",null,{"$f":"IFERROR(Father_Name(C198),\"\")","v":"عصام حسن سيد أحمد"},null,""]
[27,null,"يوسف عماد حلمي عبدالعاطي",31402141404112,"2014-02-14",17,7,9,"ذكر",null,{"$f":"IFERROR(Father_Name(C199),\"\")","v":"عماد حلمي عبدالعاطي"},null,""]
[28,null,"يوسف كريم محمد ابراهيم",31407111402117,{"$f":"IFERROR(DATE(IF(LEFT(D200,1)*1=3,20,19)&MID(D200,2,2),MID(D200,4,2),MID(D200,6,2)),\"\")","v":"2014-07-11"},20,2,9,"ذكر",null,{"$f":"IFERROR(Father_Name(C200),\"\")","v":"كريم محمد ابراهيم"},null,""]
[29,null,"يوسف محمد عبدالمنعم احمد",31408201401639,"2014-08-20",{"$f":"IFERROR(DATEDIF(E201,$K$1,\"MD\"),\"\")","v":11},{"$f":"IFERROR(DATEDIF(E201,$K$1,\"YM\"),\"\")","v":1},{"$f":"IFERROR(DATEDIF(E201,$K$1,\"Y\"),\"\")","v":9},{"$f":"IFERROR(IF(ISODD(MID(D201,13,1)),\"ذكر\",\"انثى\"),\"\")","v":"ذكر"},null,{"$f":"IFERROR(Father_Name(C201),\"\")","v":"محمد عبدالمنعم احمد"},null,{"$f":"IF(C201=\"\",\"\",IF(COUNTIF($K$8:$K$1000,K201)>1,\"توئم\",\"\"))","v":""}]
[30,null,"يوسف محمد عطيه السيد",31409261402835,"2014-09-26",5,0,9,"ذكر",null,{"$f":"IFERROR(Father_Name(C202),\"\")","v":"محمد عطيه السيد"},null,""]
[31,null,"احلام علاء الدين عبدالمعطي قدوسة",31403091403825,"2014-03-09",22,6,9,"انثى",null,{"$f":"IFERROR(Father_Name(C203),\"\")","v":"علاء الدين عبدالمعطي قدوسة"},null,""]
[32,null,"اروى ايمن عبدالفتاح حسيني",31311051405343,"2013-11-05",26,10,9,"انثى",null,{"$f":"IFERROR(Father_Name(C204),\"\")","v":"ايمن عبدالفتاح حسيني"},null,""]
[1,null,"اسماء طه عبد المنعم محمد",31403291403129,"2014-03-29",2,6,9,"انثى",null,{"$f":"IFERROR(Father_Name(C205),\"\")","v":"طه عبد المنعم محمد"},null,""]
[2,null,"أسماء فتحى الصياد عبد العال",31406181403947,"2014-06-18",13,3,9,"انثى",null,{"$f":"IFERROR(Father_Name(C206),\"\")","v":"فتحى الصياد عبد العال"},null,""]
[3,null,"اسماء مجدى على سليم",31311181403903,"2013-11-18",13,10,9,"انثى",null,{"$f":"IFERROR(Father_Name(C207),\"\")","v":"مجدى على سليم"},null,""]
[4,null,"اسيل محمد مهدي قايدبه",31407241400124,"2014-07-24",7,2,9,"انثى",null,{"$f":"IFERROR(Father_Name(C208),\"\")","v":"محمد مهدي قايدبه"},null,""]
[5,null,"اشرقت مصطفى عبد الرحمن رشاد مصطفى",31407011407561,"2014-07-01",0,3,9,"انثى",null,{"$f":"IFERROR(Father_Name(C209),\"\")","v":"مصطفى عبد الرحمن رشاد مصطفى"},null,""]
[6,null,"أشرقت ممدوح عاطف محمد عفيفي",31312281402285,"2013-12-28",3,9,9,"انثى",null,{"$f":"IFERROR(Father_Name(C210),\"\")","v":"ممدوح عاطف محمد عفيفي"},null,""]
[7,null,"اشرقت وليد محمد عابد زيدان",31408011404925,"2014-08-01",0,2,9,"انثى",null,{"$f":"IFERROR(Father_Name(C211),\"\")","v":"وليد محمد عابد زيدان"},null,""]
[8,null,"الزهراء أحمد إسماعيل فراج",31407091401704,"2014-07-09",22,2,9,"انثى",null,{"$f":"IFERROR(Father_Name(C212),\"\")","v":"أحمد إسماعيل فراج"},null,""]
[9,null,"الشيماء طارق محمد عبد السميع شافعي",31401171401065,"2014-01-17",14,8,9,"انثى",null,{"$f":"IFERROR(Father_Name(C213),\"\")","v":"طارق محمد عبد السميع شافعي"},null,""]
[10,null,"الهام احمد عادل جبر شرف الدين",31406131401188,"2014-06-13",18,3,9,"انثى",null,{"$f":"IFERROR(Father_Name(C214),\"\")","v":"احمد عادل جبر شرف الدين"},null,""]
[11,null,"امنية ابوبكر صبحى ناجي محمد العزب",31407121402689,"2014-07-12",19,2,9,"انثى",null,{"$f":"IFERROR(Father_Name(C215),\"\")","v":"ابوبكر صبحى ناجي محمد العزب"},null,""]
[12,null,"آيه برقوقي برقوقي عبدالرحمن زيدان",31407151402209,"2014-07-15",16,2,9,"انثى",null,{"$f":"IFERROR(Father_Name(C216),\"\")","v":"برقوقي برقوقي عبدالرحمن زيدان"},null,""]
[13,null,"بسنت احمد يحي احمد محمد القويسنى",31401011406141,"2014-01-01",0,9,9,"انثى",null,{"$f":"IFERROR(Father_Name(C217),\"\")","v":"احمد يحي احمد محمد القويسنى"},null,""]
[14,null,"تسنيم مصطفى مجدى رشاد مصطفى",31409061404124,"2014-09-06",25,0,9,"انثى",null,{"$f":"IFERROR(Father_Name(C218),\"\")","v":"مصطفى مجدى رشاد مصطفى"},null,""]
[15,null,"تسنيم ناصف على ابراهيم",31408211402102,"2014-08-21",10,1,9,"انثى",null,{"$f":"IFERROR(Father_Name(C219),\"\")","v":"ناصف على ابراهيم"},null,""]
[16,null,"تقى وائل عزت سليمان عيسى",31406101404883,"2014-06-10",21,3,9,"انثى",null,{"$f":"IFERROR(Father_Name(C220),\"\")","v":"وائل عزت سليمان عيسى"},null,""]
[17,null,"تقي محمد مصلحي عبدالفتاح محمد",31311251404627,"2013-11-25",6,10,9,"انثى",null,{"$f":"IFERROR(Father_Name(C221),\"\")","v":"محمد مصلحي عبدالفتاح محمد"},null,""]
[18,null,"جنا ايمن حلمي عبدالرحمن",31405281402984,"2014-05-28",3,4,9,"انثى",null,{"$f":"IFERROR(Father_Name(C222),\"\")","v":"ايمن حلمي عبدالرحمن"},null,""]
[19,null,"جنا سعيد طه محمد زيدان",31405081403129,"2014-05-08",23,4,9,"انثى",null,{"$f":"IFERROR(Father_Name(C223),\"\")","v":"سعيد طه محمد زيدان"},null,""]
[20,null,"جنا عبدالمعطى مهدى عبدالمعطى عمرو",31403041403948,"2014-03-04",27,6,9,"انثى",null,{"$f":"IFERROR(Father_Name(C224),\"\")","v":"عبدالمعطى مهدى عبدالمعطى عمرو"},null,""]
[21,null,"جنا عفيفي سيد عفيفي",31407121402581,"2014-07-12",19,2,9,"انثى",null,{"$f":"IFERROR(Father_Name(C225),\"\")","v":"عفيفي سيد عفيفي"},null,""]
[22,null,"جنات عبدالخالق ابوزيد عبدالعزيز",31310021401665,"2013-10-02",29,11,9,"انثى",null,{"$f":"IFERROR(Father_Name(C226),\"\")","v":"عبدالخالق ابوزيد عبدالعزيز"},null,""]
[23,null,"جنه مجدي فتحي عبدالسلام",31409231404043,"2014-09-23",8,0,9,"انثى",null,{"$f":"IFERROR(Father_Name(C227),\"\")","v":"مجدي فتحي عبدالسلام"},null,""]
[24,null,"جنه محمد احمد محمد نجم",31312111403708,"2013-12-11",20,9,9,"انثى",null,{"$f":"IFERROR(Father_Name(C228),\"\")","v":"محمد احمد محمد نجم"},null,""]
[25,null,"جنى احمد شعبان محمد",31407091401747,"2014-07-09",22,2,9,"انثى",null,{"$f":"IFERROR(Father_Name(C229),\"\")","v":"احمد شعبان محمد"},null,""]
[26,null,"جنى احمد محمد الشحات",31311111405003,"2013-11-11",20,10,9,"انثى",null,{"$f":"IFERROR(Father_Name(C230),\"\")","v":"احمد محمد الشحات"},null,""]
[27,null,"جنى طه الهادي عفيفي",31410011407341,"2014-10-01",0,0,9,"انثى",null,{"$f":"IFERROR(Father_Name(C231),\"\")","v":"طه الهادي عفيفي"},null,""]
[28,null,"جنى عماد الدين فايد كساب",31403111402529,"2014-03-11",20,6,9,"انثى",null,{"$f":"IFERROR(Father_Name(C232),\"\")","v":"عماد الدين فايد كساب"},null,""]
[29,null,"جنى ماهر أحمدي السيد محمد حطب",31402011405184,"2014-02-01",0,8,9,"انثى",null,{"$f":"IFERROR(Father_Name(C233),\"\")","v":"ماهر أحمدي السيد محمد حطب"},null,""]
[30,null,"جنى محمود طه محمد",31405151405787,"2014-05-15",16,4,9,"انثى",null,{"$f":"IFERROR(Father_Name(C234),\"\")","v":"محمود طه محمد"},null,""]
[31,null,"جني احمد سمير عبد المنعم الفي",31406051400741,"2014-06-05",26,3,9,"انثى",null,{"$f":"IFERROR(Father_Name(C235),\"\")","v":"احمد سمير عبد المنعم الفي"},null,""]
[32,null,"جني صلاح عبدالفتاح نبيه",31403181401988,"2014-03-18",13,6,9,"انثى",null,{"$f":"IFERROR(Father_Name(C236),\"\")","v":"صلاح عبدالفتاح نبيه"},null,""]
[1,null,"جهاد ايهاب نايف فرحات ابراهيم",31311151404425,"2013-11-15",16,10,9,"انثى",null,{"$f":"IFERROR(Father_Name(C237),\"\")","v":"ايهاب نايف فرحات ابراهيم"},null,""]
[2,null,"حبيبة احمد سعيد محمد عبد الوهاب",31406151405481,"2014-06-15",16,3,9,"انثى",null,{"$f":"IFERROR(Father_Name(C238),\"\")","v":"احمد سعيد محمد عبد الوهاب"},null,""]
[3,null,"حبيبة الصياد عبد الله الصياد",31311191403928,"2013-11-19",12,10,9,"انثى",null,{"$f":"IFERROR(Father_Name(C239),\"\")","v":"الصياد عبد الله الصياد"},null,""]
[4,null,"حبيبة محمد محمد عبد العزيز محمد جاد",31407121402565,"2014-07-12",19,2,9,"انثى",null,{"$f":"IFERROR(Father_Name(C240),\"\")","v":"محمد محمد عبد العزيز محمد جاد"},null,""]
[5,null,"حبيبه اسامه سعد عبد الله",31408241401186,"2014-08-24",7,1,9,"انثى",null,{"$f":"IFERROR(Father_Name(C241),\"\")","v":"اسامه سعد عبد الله"},null,""]
[6,null,"حبيبه أشرف بحيري إبراهيم زين",31310281403882,"2013-10-28",3,11,9,"انثى",null,{"$f":"IFERROR(Father_Name(C242),\"\")","v":"أشرف بحيري إبراهيم زين"},null,""]
[7,null,"حبيبه عبدالهادى محمود عبدالهادى النادى زيدان",31407071406726,"2014-07-07",24,2,9,"انثى",null,{"$f":"IFERROR(Father_Name(C243),\"\")","v":"عبدالهادى محمود عبدالهادى النادى زيدان"},null,""]
[8,null,"حبيبه محمد السيد عبدالوهاب الشيخ",31402021402744,"2014-02-02",29,7,9,"انثى",null,{"$f":"IFERROR(Father_Name(C244),\"\")","v":"محمد السيد عبدالوهاب الشيخ"},null,""]
[9,null,"حبيبه محمد سعيد محمد",31406041403483,"2014-06-04",27,3,9,"انثى",null,{"$f":"IFERROR(Father_Name(C245),\"\")","v":"محمد سعيد محمد"},null,""]
[10,null,"حبيبه محمد عبدالفتاح السعيد",31409251404287,"2014-09-25",6,0,9,"انثى",null,{"$f":"IFERROR(Father_Name(C246),\"\")","v":"محمد عبدالفتاح السعيد"},null,""]
[11,null,"حبيبه هانى عبد الجيد محمد امام عمارة",31408111401869,"2014-08-11",20,1,9,"انثى",null,{"$f":"IFERROR(Father_Name(C247),\"\")","v":"هانى عبد الجيد محمد امام عمارة"},null,""]
[12,null,"حبيبه وليد محمود السيد امام شرع",31311211404403,"2013-11-21",10,10,9,"انثى",null,{"$f":"IFERROR(Father_Name(C248),\"\")","v":"وليد محمود السيد امام شرع"},null,""]
[13,null,"حسنه محمود فهمى محمود",31408291401241,"2014-08-29",2,1,9,"انثى",null,{"$f":"IFERROR(Father_Name(C249),\"\")","v":"محمود فهمى محمود"},null,""]
[14,null,"حنان محمد السيد ",31406101403445,"2014-06-10",21,3,9,"انثى",null,{"$f":"IFERROR(Father_Name(C250),\"\")","v":"محمد السيد"},null,""]
[15,null,"حنان محمد مجدى حامد محمد",31401301400961,"2014-01-30",1,8,9,"انثى",null,{"$f":"IFERROR(Father_Name(C251),\"\")","v":"محمد مجدى حامد محمد"},null,""]
[16,null,"حنين احمد محمد طه محمود زيدان",31407011404821,"2014-07-01",0,3,9,"انثى",null,{"$f":"IFERROR(Father_Name(C252),\"\")","v":"احمد محمد طه محمود زيدان"},null,""]
[17,null,"حنين تامر عبد الرخمن شوقي عفيفي زيدان",31405151405809,"2014-05-15",16,4,9,"انثى",null,{"$f":"IFERROR(Father_Name(C253),\"\")","v":"تامر عبد الرخمن شوقي عفيفي زيدان"},null,""]
[18,null,"حنين حسام احمد عبدالجيد",31405031402709,"2014-05-03",28,4,9,"انثى",null,{"$f":"IFERROR(Father_Name(C254),\"\")","v":"حسام احمد عبدالجيد"},null,""]
[19,null,"حنين طه عبدالغفار عبدالفتاح",31405161403804,"2014-05-16",15,4,9,"انثى",null,{"$f":"IFERROR(Father_Name(C255),\"\")","v":"طه عبدالغفار عبدالفتاح"},null,""]
[20,null,"حنين عمرو محمد رشاد الشحات",31401151400747,"2014-01-15",16,8,9,"انثى",null,{"$f":"IFERROR(Father_Name(C256),\"\")","v":"عمرو محمد رشاد الشحات"},null,""]
[21,null,"دنيا هيثم صابر عبدالمغنى",31408161401266,"2014-08-16",15,1,9,"انثى",null,{"$f":"IFERROR(Father_Name(C257),\"\")","v":"هيثم صابر عبدالمغنى"},null,""]
[22,null,"دينا احمد عبدالمنعم احمد",31310151402744,"2013-10-15",16,11,9,"انثى",null,{"$f":"IFERROR(Father_Name(C258),\"\")","v":"احمد عبدالمنعم احمد"},null,""]
[23,null,"رانا خالد سعيد عبدالفتاح",31406041403505,"2014-06-04",27,3,9,"انثى",null,{"$f":"IFERROR(Father_Name(C259),\"\")","v":"خالد سعيد عبدالفتاح"},null,""]
[24,null,"رانسي سامح السيد محمد",31410011407406,"2014-10-01",0,0,9,"انثى",null,{"$f":"IFERROR(Father_Name(C260),\"\")","v":"سامح السيد محمد"},null,""]
[25,null,"رحمه السعيد عبد الهادي إمام محمد العقدة",31404031401927,"2014-04-03",28,5,9,"انثى",null,{"$f":"IFERROR(Father_Name(C261),\"\")","v":"السعيد عبد الهادي إمام محمد العقدة"},null,""]
[26,null,"رحمه عادل فوزي ابو العنين",31312150107644,"2013-12-15",16,9,9,"انثى",null,{"$f":"IFERROR(Father_Name(C262),\"\")","v":"عادل فوزي ابو العنين"},null,""]
[27,null,"رزان سامح عبدالملك عبدالوهاب",31406101403461,"2014-06-10",21,3,9,"انثى",null,{"$f":"IFERROR(Father_Name(C263),\"\")","v":"سامح عبدالملك عبدالوهاب"},null,""]
[28,null,"رضوه ممدوح عبد الوهاب محمد عفيفي",31409271403589,{"$f":"IFERROR(DATE(IF(LEFT(D264,1)*1=3,20,19)&MID(D264,2,2),MID(D264,4,2),MID(D264,6,2)),\"\")","v":"2014-09-27"},4,0,9,"انثى",null,{"$f":"IFERROR(Father_Name(C264),\"\")","v":"ممدوح عبد الوهاب محمد عفيفي"},null,""]
[29,null,"رغد السيد محمد السيد إسماعيل",31405221402446,"2014-05-22",{"$f":"IFERROR(DATEDIF(E265,$K$1,\"MD\"),\"\")","v":9},{"$f":"IFERROR(DATEDIF(E265,$K$1,\"YM\"),\"\")","v":4},{"$f":"IFERROR(DATEDIF(E265,$K$1,\"Y\"),\"\")","v":9},{"$f":"IFERROR(IF(ISODD(MID(D265,13,1)),\"ذكر\",\"انثى\"),\"\")","v":"انثى"},null,{"$f":"IFERROR(Father_Name(C265),\"\")","v":"السيد محمد السيد إسماعيل"},null,{"$f":"IF(C265=\"\",\"\",IF(COUNTIF($K$8:$K$1000,K265)>1,\"توئم\",\"\"))","v":""}]
[30,null,"رغد طه عبدالعليم طه",31408061403407,"2014-08-06",25,1,9,"انثى",null,{"$f":"IFERROR(Father_Name(C266),\"\")","v":"طه عبدالعليم طه"},null,""]
[31,null,"رغد عابد جلال عابد",31310241403502,"2013-10-24",7,11,9,"انثى",null,{"$f":"IFERROR(Father_Name(C267),\"\")","v":"عابد جلال عابد"},null,""]
[32,null,"رغده احمد فتحى احمد",31401291401204,"2014-01-29",2,8,9,"انثى",null,{"$f":"IFERROR(Father_Name(C268),\"\")","v":"احمد فتحى احمد"},null,""]
[1,null,"رفيدة رمضان عبدالعال عربى اسماعيل",31405038800947,"2014-05-03",28,4,9,"انثى",null,{"$f":"IFERROR(Father_Name(C269),\"\")","v":"رمضان عبدالعال عربى اسماعيل"},null,""]
[2,null,"رقية احمد اشرف بيومي محمد",31404151400649,"2014-04-15",16,5,9,"انثى",null,{"$f":"IFERROR(Father_Name(C270),\"\")","v":"احمد اشرف بيومي محمد"},null,""]
[3,null,"رقية احمد محمود احمد مامون",31403061404509,"2014-03-06",25,6,9,"انثى",null,{"$f":"IFERROR(Father_Name(C271),\"\")","v":"احمد محمود احمد مامون"},null,""]
[4,null,"رقيه امام عطيه امام",31405141401309,"2014-05-14",17,4,9,"انثى",null,{"$f":"IFERROR(Father_Name(C272),\"\")","v":"امام عطيه امام"},null,""]
[5,null,"رقيه امين عبدالرحمن امين",31404281402562,"2014-04-28",3,5,9,"انثى",null,{"$f":"IFERROR(Father_Name(C273),\"\")","v":"امين عبدالرحمن امين"},null,""]
[6,null,"رنا عبد العزيز رشلد زيدان",31409271402949,"2014-09-27",4,0,9,"انثى",null,{"$f":"IFERROR(Father_Name(C274),\"\")","v":"عبد العزيز رشلد زيدان"},null,""]
[7,null,"رنا محمود عبدالفتاح محمود احمد عثمان",31407281401166,"2014-07-28",3,2,9,"انثى",null,{"$f":"IFERROR(Father_Name(C275),\"\")","v":"محمود عبدالفتاح محمود احمد عثمان"},null,""]
[8,null,"روان عبد العزيز رشاد مسعد عبد الفتاح زيدان",31409271402965,"2014-09-27",4,0,9,"انثى",null,{"$f":"IFERROR(Father_Name(C276),\"\")","v":"عبد العزيز رشاد مسعد عبد الفتاح زيدان"},null,""]
[9,null,"رودينا رضا عبدالفتاح محمد",31405051404082,"2014-05-05",26,4,9,"انثى",null,{"$f":"IFERROR(Father_Name(C277),\"\")","v":"رضا عبدالفتاح محمد"},null,""]
[10,null,"رودينا عادل عبدالهادي عبدالهادي",31409091406601,"2014-09-09",22,0,9,"انثى",null,{"$f":"IFERROR(Father_Name(C278),\"\")","v":"عادل عبدالهادي عبدالهادي"},null,""]
[11,null,"رودينا عماد محمد متولي جاد غنيم",31310201404506,"2013-10-20",11,11,9,"انثى",null,{"$f":"IFERROR(Father_Name(C279),\"\")","v":"عماد محمد متولي جاد غنيم"},null,""]
[12,null,"رودينا عمرو فرحات محمد",31408291401225,"2014-08-29",2,1,9,"انثى",null,{"$f":"IFERROR(Father_Name(C280),\"\")","v":"عمرو فرحات محمد"},null,""]
[13,null,"رودينا محمد عواد عبدالباسط",31406161404823,"2014-06-16",15,3,9,"انثى",null,{"$f":"IFERROR(Father_Name(C281),\"\")","v":"محمد عواد عبدالباسط"},null,""]
[14,null,"رودينا محمود محمد محمد حسن",31403201403222,"2014-03-20",11,6,9,"انثى",null,{"$f":"IFERROR(Father_Name(C282),\"\")","v":"محمود محمد محمد حسن"},null,""]
[15,null,"رودينا هاشم محمد عبد الله محمد حسن",31409061404167,"2014-09-06",25,0,9,"انثى",null,{"$f":"IFERROR(Father_Name(C283),\"\")","v":"هاشم محمد عبد الله محمد حسن"},null,""]
[16,null,"روضه أحمد محمد عبد المجيد محمد عياد",31406301403482,"2014-06-30",1,3,9,"انثى",null,{"$f":"IFERROR(Father_Name(C284),\"\")","v":"أحمد محمد عبد المجيد محمد عياد"},null,""]
[17,null,"روضه مجدي احمد محمد صقر شاهين",31409201406521,"2014-09-20",11,0,9,"انثى",null,{"$f":"IFERROR(Father_Name(C285),\"\")","v":"مجدي احمد محمد صقر شاهين"},null,""]
[18,null,"روقيه رضا محمود محمد",31401101404326,"2014-01-10",21,8,9,"انثى",null,{"$f":"IFERROR(Father_Name(C286),\"\")","v":"رضا محمود محمد"},null,""]
[19,null,"رؤى احمد محمود الهادى عابد زيدان",31401051403404,"2014-01-05",26,8,9,"انثى",null,{"$f":"IFERROR(Father_Name(C287),\"\")","v":"احمد محمود الهادى عابد زيدان"},null,""]
[20,null,"رؤى محمد فتحى عبد الفتاح متولى حسين",31406291401826,"2014-06-29",2,3,9,"انثى",null,{"$f":"IFERROR(Father_Name(C288),\"\")","v":"محمد فتحى عبد الفتاح متولى حسين"},null,""]
[21,null,"رويدا عبدالمعز صبحي عبدالمعز",31409091406628,"2014-09-09",22,0,9,"انثى",null,{"$f":"IFERROR(Father_Name(C289),\"\")","v":"عبدالمعز صبحي عبدالمعز"},null,""]
[22,null,"ريتاج احمد مجدى السيد عفيفى",31409211404403,"2014-09-21",10,0,9,"انثى",null,{"$f":"IFERROR(Father_Name(C290),\"\")","v":"احمد مجدى السيد عفيفى"},null,""]
[23,null,"ريتاج ياسر عبدالرحمن عفيفي",31403191403083,"2014-03-19",12,6,9,"انثى",null,{"$f":"IFERROR(Father_Name(C291),\"\")","v":"ياسر عبدالرحمن عفيفي"},null,""]
[24,null,"ريم تامر السيد محمد برقوقي زيدان",31311241403061,"2013-11-24",7,10,9,"انثى",null,{"$f":"IFERROR(Father_Name(C292),\"\")","v":"تامر السيد محمد برقوقي زيدان"},null,""]
[25,null,"ريم خالد عبد الفتاح محمد جاد",31407031405247,"2014-07-03",28,2,9,"انثى",null,{"$f":"IFERROR(Father_Name(C293),\"\")","v":"خالد عبد الفتاح محمد جاد"},null,""]
[26,null,"ريماس احمد صبحي عبدالحليم خفاجى",31312191402146,"2013-12-19",12,9,9,"انثى",null,{"$f":"IFERROR(Father_Name(C294),\"\")","v":"احمد صبحي عبدالحليم خفاجى"},null,""]
[27,null,"ريماس احمد صبحي عبدالوهاب",31408021402009,"2014-08-02",29,1,9,"انثى",null,{"$f":"IFERROR(Father_Name(C295),\"\")","v":"احمد صبحي عبدالوهاب"},null,""]
[28,null,"ريماس احمد محمد حسن",31401011423348,"2014-01-01",0,9,9,"انثى",null,{"$f":"IFERROR(Father_Name(C296),\"\")","v":"احمد محمد حسن"},null,""]
[29,null,"ريماس حماده منتصر مسعد",31312151406041,"2013-12-15",16,9,9,"انثى",null,{"$f":"IFERROR(Father_Name(C297),\"\")","v":"حماده منتصر مسعد"},null,""]
[30,null,"ريماس محمد بيومي محمد",31401011423321,"2014-01-01",0,9,9,"انثى",null,{"$f":"IFERROR(Father_Name(C298),\"\")","v":"محمد بيومي محمد"},null,""]
[31,null,"ريماس هاني مصلح حسن",31406171404465,"2014-06-17",14,3,9,"انثى",null,{"$f":"IFERROR(Father_Name(C299),\"\")","v":"هاني مصلح حسن"},null,""]
[32,null,"ريمان محمد محمود محمد عبد الصبور",31405051404066,"2014-05-05",26,4,9,"انثى",null,{"$f":"IFERROR(Father_Name(C300),\"\")","v":"محمد محمود محمد عبد الصبور"},null,""]
[1,null,"ريهام سامى سعيد عبدالحى محمد سليمان",31404191402083,"2014-04-19",12,5,9,"انثى",null,{"$f":"IFERROR(Father_Name(C301),\"\")","v":"سامى سعيد عبدالحى محمد سليمان"},null,""]
[2,null,"زينب لطفى الصياد مهدى عبدالجليل",31310101402522,"2013-10-10",21,11,9,"انثى",null,{"$f":"IFERROR(Father_Name(C302),\"\")","v":"لطفى الصياد مهدى عبدالجليل"},null,""]
[3,null,"ساره عبدالفتاح محمد عبدالفتاح محرم",31406251404768,"2014-06-25",6,3,9,"انثى",null,{"$f":"IFERROR(Father_Name(C303),\"\")","v":"عبدالفتاح محمد عبدالفتاح محرم"},null,""]
[4,null,"ساره عمار اسماعيل الشحات",31409071404122,"2014-09-07",24,0,9,"انثى",null,{"$f":"IFERROR(Father_Name(C304),\"\")","v":"عمار اسماعيل الشحات"},null,""]
[5,null,"ساره محمد السيد محمد رضا",31311111404929,"2013-11-11",20,10,9,"انثى",null,{"$f":"IFERROR(Father_Name(C305),\"\")","v":"محمد السيد محمد رضا"},null,""]
[6,null,"سجده عبدالمعطى بدر سرحان",31401061403062,"2014-01-06",25,8,9,"انثى",null,{"$f":"IFERROR(Father_Name(C306),\"\")","v":"عبدالمعطى بدر سرحان"},null,""]
[7,null,"سلمى السيد سعيد عبدالمقصود",31402051404903,"2014-02-05",26,7,9,"انثى",null,{"$f":"IFERROR(Father_Name(C307),\"\")","v":"السيد سعيد عبدالمقصود"},null,""]
[8,null,"سلمى صبحي محمد يوسف العرضى",31311181403881,"2013-11-18",13,10,9,"انثى",null,{"$f":"IFERROR(Father_Name(C308),\"\")","v":"صبحي محمد يوسف العرضى"},null,""]
[9,null,"سلمى عفيفى أحمد عبدالمنعم أحمد هلول",31310111402121,"2013-10-11",20,11,9,"انثى",null,{"$f":"IFERROR(Father_Name(C309),\"\")","v":"عفيفى أحمد عبدالمنعم أحمد هلول"},null,""]
[10,null,"سلمى محمد أحمد بدران حسيني النمر",31404201402664,"2014-04-20",11,5,9,"انثى",null,{"$f":"IFERROR(Father_Name(C310),\"\")","v":"محمد أحمد بدران حسيني النمر"},null,""]
[11,null,"سلمى محمد محمود محمد توفيق خفاجى",31409141404621,"2014-09-14",17,0,9,"انثى",null,{"$f":"IFERROR(Father_Name(C311),\"\")","v":"محمد محمود محمد توفيق خفاجى"},null,""]
[12,null,"سلمي عبدالفتاح محمود محمد",31312031403847,"2013-12-03",28,9,9,"انثى",null,{"$f":"IFERROR(Father_Name(C312),\"\")","v":"عبدالفتاح محمود محمد"},null,""]
[13,null,"سما ايمن مختار عبدالمنعم",31409121403289,"2014-09-12",19,0,9,"انثى",null,{"$f":"IFERROR(Father_Name(C313),\"\")","v":"ايمن مختار عبدالمنعم"},null,""]
[14,null,"سما محمد سعد عبدالفتاح",31405201403985,"2014-05-20",11,4,9,"انثى",null,{"$f":"IFERROR(Father_Name(C314),\"\")","v":"محمد سعد عبدالفتاح"},null,""]
[15,null,"سما هانى السيد احمد مامون بدوى",31406211403068,"2014-06-21",10,3,9,"انثى",null,{"$f":"IFERROR(Father_Name(C315),\"\")","v":"هانى السيد احمد مامون بدوى"},null,""]
[16,null,"سما هاني اسامة محمد",31409101400682,"2014-09-10",21,0,9,"انثى",null,{"$f":"IFERROR(Father_Name(C316),\"\")","v":"هاني اسامة محمد"},null,""]
[17,null,"سناء عبدالمنعم محمد عبدالمنعم",31404291401386,"2014-04-29",2,5,9,"انثى",null,{"$f":"IFERROR(Father_Name(C317),\"\")","v":"عبدالمنعم محمد عبدالمنعم"},null,""]
[18,null,"سهام ضياء الدين عبد الوهاب كمال حسنين عمر",31404091401462,"2014-04-09",22,5,9,"انثى",null,{"$f":"IFERROR(Father_Name(C318),\"\")","v":"ضياء الدين عبد الوهاب كمال حسنين عمر"},null,""]
[19,null,"شاهنده السيد محمد السيد",31311031404227,"2013-11-03",28,10,9,"انثى",null,{"$f":"IFERROR(Father_Name(C319),\"\")","v":"السيد محمد السيد"},null,""]
[20,null,"شريف محمد صبحي محمدي",31310251402911,"2013-10-25",6,11,9,"ذكر",null,{"$f":"IFERROR(Father_Name(C320),\"\")","v":"محمد صبحي محمدي"},null,""]
[21,null,"شهد احمد عبد الله الصياد",31403061404525,"2014-03-06",25,6,9,"انثى",null,{"$f":"IFERROR(Father_Name(C321),\"\")","v":"احمد عبد الله الصياد"},null,""]
[22,null,"شهد السيد عبدالوهاب السيد",31408171404042,"2014-08-17",14,1,9,"انثى",null,{"$f":"IFERROR(Father_Name(C322),\"\")","v":"السيد عبدالوهاب السيد"},null,""]
[23,null,"شهد وليد ابراهيم محمد",31409071405005,"2014-09-07",24,0,9,"انثى",null,{"$f":"IFERROR(Father_Name(C323),\"\")","v":"وليد ابراهيم محمد"},null,""]
[24,null,"شهندا شريف ابو زيد عبدالخالق",31406061404427,"2014-06-06",25,3,9,"انثى",null,{"$f":"IFERROR(Father_Name(C324),\"\")","v":"شريف ابو زيد عبدالخالق"},null,""]
[25,null,"شيماء خالد عبد الهادي كمال حسانين",31310141400506,"2013-10-14",17,11,9,"انثى",null,{"$f":"IFERROR(Father_Name(C325),\"\")","v":"خالد عبد الهادي كمال حسانين"},null,""]
[26,null,"شيماء محمود أحمد مكاوي",31408151401764,"2014-08-15",16,1,9,"انثى",null,{"$f":"IFERROR(Father_Name(C326),\"\")","v":"محمود أحمد مكاوي"},null,""]
[27,null,"علياء اسماعيل محمد حسيني",31401191403781,"2014-01-19",12,8,9,"انثى",null,{"$f":"IFERROR(Father_Name(C327),\"\")","v":"اسماعيل محمد حسيني"},null,""]
[28,null,"علياء عماد احمد عبدالمعطي",31407311401069,{"$f":"IFERROR(DATE(IF(LEFT(D328,1)*1=3,20,19)&MID(D328,2,2),MID(D328,4,2),MID(D328,6,2)),\"\")","v":"2014-07-31"},0,2,9,"انثى",null,{"$f":"IFERROR(Father_Name(C328),\"\")","v":"عماد احمد عبدالمعطي"},null,""]
[29,null,"فاطمة الزهراء بهاء الدين عبد العزيز عبد الرشيد",31405011406767,"2014-05-01",{"$f":"IFERROR(DATEDIF(E329,$K$1,\"MD\"),\"\")","v":0},{"$f":"IFERROR(DATEDIF(E329,$K$1,\"YM\"),\"\")","v":5},{"$f":"IFERROR(DATEDIF(E329,$K$1,\"Y\"),\"\")","v":9},{"$f":"IFERROR(IF(ISODD(MID(D329,13,1)),\"ذكر\",\"انثى\"),\"\")","v":"انثى"},null,{"$f":"IFERROR(Father_Name(C329),\"\")","v":"الزهراء بهاء الدين عبد العزيز عبد الرشيد"},null,{"$f":"IF(C329=\"\",\"\",IF(COUNTIF($K$8:$K$1000,K329)>1,\"توئم\",\"\"))","v":""}]
[30,null,"فاطمة الزهراء محمد شحته عبدالفتاح",31406201403523,"2014-06-20",11,3,9,"انثى",null,{"$f":"IFERROR(Father_Name(C330),\"\")","v":"الزهراء محمد شحته عبدالفتاح"},null,""]
[31,null,"فاطمة الزهراء محمد عبدالفتاح نبيه",31408191402569,"2014-08-19",12,1,9,"انثى",null,{"$f":"IFERROR(Father_Name(C331),\"\")","v":"الزهراء محمد عبدالفتاح نبيه"},null,""]
[32,null,"فاطمة تامر احمد عبدالرحمن",31408031406002,"2014-08-03",28,1,9,"انثى",null,{"$f":"IFERROR(Father_Name(C332),\"\")","v":"تامر احمد عبدالرحمن"},null,""]
[33,null,"فاطمة هاشم رمضان السيد السيد عتمان",31402171402904,"2014-02-17",14,7,9,"انثى",null,{"$f":"IFERROR(Father_Name(C333),\"\")","v":"هاشم رمضان السيد السيد عتمان"},null,""]
[1,null,"فاطمه محمد على محمد على شرف",31402081403901,"2014-02-08",23,7,9,"انثى",null,{"$f":"IFERROR(Father_Name(C334),\"\")","v":"محمد على محمد على شرف"},null,""]
[2,null,"فرح سامح مصطفى كامل امام",31310211403826,"2013-10-21",10,11,9,"انثى",null,{"$f":"IFERROR(Father_Name(C335),\"\")","v":"سامح مصطفى كامل امام"},null,""]
[3,null,"فرح عمرو عبداللطيف ابو العنين",31405251402424,"2014-05-25",6,4,9,"انثى",null,{"$f":"IFERROR(Father_Name(C336),\"\")","v":"عمرو عبداللطيف ابو العنين"},null,""]
[4,null,"فرح مجدى محمود محمد",31404121401586,"2014-04-12",19,5,9,"انثى",null,{"$f":"IFERROR(Father_Name(C337),\"\")","v":"مجدى محمود محمد"},null,""]
[5,null,"فرح محمد جمال معاذ",31408091402081,"2014-08-09",22,1,9,"انثى",null,{"$f":"IFERROR(Father_Name(C338),\"\")","v":"محمد جمال معاذ"},null,""]
[6,null,"فرح مصطفى عبد اللطيف عبد الفتاح",31311091403467,"2013-11-09",22,10,9,"انثى",null,{"$f":"IFERROR(Father_Name(C339),\"\")","v":"مصطفى عبد اللطيف عبد الفتاح"},null,""]
[7,null,"كوثر طارق عبد الوهاب محمد عفيفي",31402171402947,"2014-02-17",14,7,9,"انثى",null,{"$f":"IFERROR(Father_Name(C340),\"\")","v":"طارق عبد الوهاب محمد عفيفي"},null,""]
[8,null,"لمياء محمد السيد طه امام زين",31407011407588,"2014-07-01",0,3,9,"انثى",null,{"$f":"IFERROR(Father_Name(C341),\"\")","v":"محمد السيد طه امام زين"},null,""]
[9,null,"لوجينا كرم عبدالوهاب عبدالهادي",31312131402724,"2013-12-13",18,9,9,"انثى",null,{"$f":"IFERROR(Father_Name(C342),\"\")","v":"كرم عبدالوهاب عبدالهادي"},null,""]
[10,null,"ماجده عدلي عبدالوهاب عدلي",31406011405945,"2014-06-01",0,4,9,"انثى",null,{"$f":"IFERROR(Father_Name(C343),\"\")","v":"عدلي عبدالوهاب عدلي"},null,""]
[11,null,"ماجده محمد رمضان عبدالمنعم الفى",31407021403122,"2014-07-02",29,2,9,"انثى",null,{"$f":"IFERROR(Father_Name(C344),\"\")","v":"محمد رمضان عبدالمنعم الفى"},null,""]
[12,null,"مروه احمد عبدالوكيل مكاوى",31401051404206,"2014-01-05",26,8,9,"انثى",null,{"$f":"IFERROR(Father_Name(C345),\"\")","v":"احمد عبدالوكيل مكاوى"},null,""]
[13,null,"مريم ابو عيد عبدالهادي ابو عيد",31310101403685,"2013-10-10",21,11,9,"انثى",null,{"$f":"IFERROR(Father_Name(C346),\"\")","v":"ابو عيد عبدالهادي ابو عيد"},null,""]
[14,null,"مريم أحمد طه عبدالمنعم زكي المستكاوي",31311141403021,"2013-11-14",17,10,9,"انثى",null,{"$f":"IFERROR(Father_Name(C347),\"\")","v":"أحمد طه عبدالمنعم زكي المستكاوي"},null,""]
[15,null,"مريم احمد محمد طلعت فرج",31407251402702,"2014-07-25",6,2,9,"انثى",null,{"$f":"IFERROR(Father_Name(C348),\"\")","v":"احمد محمد طلعت فرج"},null,""]
[16,null,"مريم السيد عبد العزيز محمود السيد الأكشر",31312201402948,"2013-12-20",11,9,9,"انثى",null,{"$f":"IFERROR(Father_Name(C349),\"\")","v":"السيد عبد العزيز محمود السيد الأكشر"},null,""]
[17,null,"مريم رضا فتحي احمد",31407011407502,"2014-07-01",0,3,9,"انثى",null,{"$f":"IFERROR(Father_Name(C350),\"\")","v":"رضا فتحي احمد"},null,""]
[18,null,"مريم عماد حسن عبد المعز",31311031404243,"2013-11-03",28,10,9,"انثى",null,{"$f":"IFERROR(Father_Name(C351),\"\")","v":"عماد حسن عبد المعز"},null,""]
[19,null,"مريم فوزي احمد سرحان",31404180100786,"2014-04-18",13,5,9,"انثى",null,{"$f":"IFERROR(Father_Name(C352),\"\")","v":"فوزي احمد سرحان"},null,""]
[20,null,"مريم ماهر محمود احمد",31401111403921,"2014-01-11",20,8,9,"انثى",null,{"$f":"IFERROR(Father_Name(C353),\"\")","v":"ماهر محمود احمد"},null,""]
[21,null,"مريم محمد عبد العليم عبد الودود عبد العليم",31402071401846,"2014-02-07",24,7,9,"انثى",null,{"$f":"IFERROR(Father_Name(C354),\"\")","v":"محمد عبد العليم عبد الودود عبد العليم"},null,""]
[22,null,"مريم محمد فؤاد محمد",31410011407309,"2014-10-01",0,0,9,"انثى",null,{"$f":"IFERROR(Father_Name(C355),\"\")","v":"محمد فؤاد محمد"},null,""]
[23,null,"مريم محي مهدي أحمد الأكشر",31405151405965,"2014-05-15",16,4,9,"انثى",null,{"$f":"IFERROR(Father_Name(C356),\"\")","v":"محي مهدي أحمد الأكشر"},null,""]
[24,null,"مريم مصطفى احمد محمد نجم",31401011406206,"2014-01-01",0,9,9,"انثى",null,{"$f":"IFERROR(Father_Name(C357),\"\")","v":"مصطفى احمد محمد نجم"},null,""]
[25,null,"مريم مصطفى عبد الرحمن عبد الوهاب عفيفى القاضى",31404141405669,"2014-04-14",17,5,9,"انثى",null,{"$f":"IFERROR(Father_Name(C358),\"\")","v":"مصطفى عبد الرحمن عبد الوهاب عفيفى القاضى"},null,""]
[26,null,"مريم وائل جمال محمد الصياد",31312071403386,"2013-12-07",24,9,9,"انثى",null,{"$f":"IFERROR(Father_Name(C359),\"\")","v":"وائل جمال محمد الصياد"},null,""]
[27,null,"مريم يسرى احمد برقوقي",31407211400146,"2014-07-21",10,2,9,"انثى",null,{"$f":"IFERROR(Father_Name(C360),\"\")","v":"يسرى احمد برقوقي"},null,""]
[28,null,"ملك رياض الدين عبد الوهاب كمال حسنين",31409231404086,"2014-09-23",8,0,9,"انثى",null,{"$f":"IFERROR(Father_Name(C361),\"\")","v":"رياض الدين عبد الوهاب كمال حسنين"},null,""]
[29,null,"ملك شاكر عبد الرحمن محمد عبده صقر",31401281401885,"2014-01-28",3,8,9,"انثى",null,{"$f":"IFERROR(Father_Name(C362),\"\")","v":"شاكر عبد الرحمن محمد عبده صقر"},null,""]
[30,null,"ملك محمد عبد الله الصياد",31403071403381,"2014-03-07",24,6,9,"انثى",null,{"$f":"IFERROR(Father_Name(C363),\"\")","v":"محمد عبد الله الصياد"},null,""]
[31,null,"ملك محمود عبد الوهاب محمد متبولي",31312011404987,"2013-12-01",0,10,9,"انثى",null,{"$f":"IFERROR(Father_Name(C364),\"\")","v":"محمود عبد الوهاب محمد متبولي"},null,""]
[32,null,"ملك مصطفي محمود عبد الرشيد محمد",31408061403466,"2014-08-06",25,1,9,"انثى",null,{"$f":"IFERROR(Father_Name(C365),\"\")","v":"مصطفي محمود عبد الرشيد محمد"},null,""]
[33,null,"ملوك ناصر عبدالحميد عبدالصبور",31401161401881,"2014-01-16",15,8,9,"انثى",null,{"$f":"IFERROR(Father_Name(C366),\"\")","v":"ناصر عبدالحميد عبدالصبور"},null,""]
[1,null,"منة الله محمود محمد متولي جاد",31402071401862,"2014-02-07",24,7,9,"انثى",null,{"$f":"IFERROR(Father_Name(C367),\"\")","v":"محمود محمد متولي جاد"},null,""]
[2,null,"منه الله حسنين فهمي حسنين",31405301401688,"2014-05-30",1,4,9,"انثى",null,{"$f":"IFERROR(Father_Name(C368),\"\")","v":"حسنين فهمي حسنين"},null,""]
[3,null,"منه عبدالمنعم محمد السبكي",31311111404988,"2013-11-11",20,10,9,"انثى",null,{"$f":"IFERROR(Father_Name(C369),\"\")","v":"عبدالمنعم محمد السبكي"},null,""]
[4,null,"منى احمد مهدى طه العرضى",31401211402949,"2014-01-21",10,8,9,"انثى",null,{"$f":"IFERROR(Father_Name(C370),\"\")","v":"احمد مهدى طه العرضى"},null,""]
[5,null,"مى ادهم محمد محمد",31406251404784,"2014-06-25",6,3,9,"انثى",null,{"$f":"IFERROR(Father_Name(C371),\"\")","v":"ادهم محمد محمد"},null,""]
[6,null,"مى محمد محمد حجازى",31409041404047,"2014-09-04",27,0,9,"انثى",null,{"$f":"IFERROR(Father_Name(C372),\"\")","v":"محمد محمد حجازى"},null,""]
[7,null,"ميار السيد حامد الصياد محمد كليب",31311211403962,"2013-11-21",10,10,9,"انثى",null,{"$f":"IFERROR(Father_Name(C373),\"\")","v":"السيد حامد الصياد محمد كليب"},null,""]
[8,null,"ميرنا ايمن سعد عبدالفتاح",31406211403041,"2014-06-21",10,3,9,"انثى",null,{"$f":"IFERROR(Father_Name(C374),\"\")","v":"ايمن سعد عبدالفتاح"},null,""]
[9,null,"نادر ماهر محمود عبد الرشيد محمد",31409101403614,"2014-09-10",21,0,9,"ذكر",null,{"$f":"IFERROR(Father_Name(C375),\"\")","v":"ماهر محمود عبد الرشيد محمد"},null,""]
[10,null,"نادين عبدالمنعم محمد ",31312011405002,"2013-12-01",0,10,9,"انثى",null,{"$f":"IFERROR(Father_Name(C376),\"\")","v":"عبدالمنعم محمد"},null,""]
[11,null,"ناديه عبدالمعطي جوده عبدالمعطي",31406221404968,"2014-06-22",9,3,9,"انثى",null,{"$f":"IFERROR(Father_Name(C377),\"\")","v":"عبدالمعطي جوده عبدالمعطي"},null,""]
[12,null,"ندا احمد حلمي مهدي",31312111403724,"2013-12-11",20,9,9,"انثى",null,{"$f":"IFERROR(Father_Name(C378),\"\")","v":"احمد حلمي مهدي"},null,""]
[13,null,"ندي السيد كمال السيد خاطر",31406211403025,"2014-06-21",10,3,9,"انثى",null,{"$f":"IFERROR(Father_Name(C379),\"\")","v":"السيد كمال السيد خاطر"},null,""]
[14,null,"نهال هشام عبد المنعم محمد",31310121403746,"2013-10-12",19,11,9,"انثى",null,{"$f":"IFERROR(Father_Name(C380),\"\")","v":"هشام عبد المنعم محمد"},null,""]
[15,null,"نور شريف محمد عبد العزيز مأمون بدوي",31312241401448,"2013-12-24",7,9,9,"انثى",null,{"$f":"IFERROR(Father_Name(C381),\"\")","v":"شريف محمد عبد العزيز مأمون بدوي"},null,""]
[16,null,"نور عامر محمد عامر",31409211404381,"2014-09-21",10,0,9,"انثى",null,{"$f":"IFERROR(Father_Name(C382),\"\")","v":"عامر محمد عامر"},null,""]
[17,null,"نور عبدالفتاح حسن السيد",31406171404449,"2014-06-17",14,3,9,"انثى",null,{"$f":"IFERROR(Father_Name(C383),\"\")","v":"عبدالفتاح حسن السيد"},null,""]
[18,null,"نوران محمد عبدالله محمد عبدالرحمن",31310231404047,"2013-10-23",8,11,9,"انثى",null,{"$f":"IFERROR(Father_Name(C384),\"\")","v":"محمد عبدالله محمد عبدالرحمن"},null,""]
[19,null,"نورهات عبد الرحمن محمد محمد عبدالرحمن الشيخ",31311261402886,"2013-11-26",5,10,9,"انثى",null,{"$f":"IFERROR(Father_Name(C385),\"\")","v":"عبد الرحمن محمد محمد عبدالرحمن الشيخ"},null,""]
[20,null,"نيره محمد نصر عبدالفتاح",31312291401945,"2013-12-29",2,9,9,"انثى",null,{"$f":"IFERROR(Father_Name(C386),\"\")","v":"محمد نصر عبدالفتاح"},null,""]
[21,null,"هاجر ماهر عبدالهادى عبدالشافى",31312151405789,"2013-12-15",16,9,9,"انثى",null,{"$f":"IFERROR(Father_Name(C387),\"\")","v":"ماهر عبدالهادى عبدالشافى"},null,""]
[22,null,"هاجر هاني فهمي محمد",31310111401222,"2013-10-11",20,11,9,"انثى",null,{"$f":"IFERROR(Father_Name(C388),\"\")","v":"هاني فهمي محمد"},null,""]
[23,null,"هدى عفيفى محمد عفيفى مصطفى سرحان",31402061400868,"2014-02-06",25,7,9,"انثى",null,{"$f":"IFERROR(Father_Name(C389),\"\")","v":"عفيفى محمد عفيفى مصطفى سرحان"},null,""]
[24,null,"هند محمد عبدالحميد عبدالمنعم",31311231404566,"2013-11-23",8,10,9,"انثى",null,{"$f":"IFERROR(Father_Name(C390),\"\")","v":"محمد عبدالحميد عبدالمنعم"},null,""]
[25,null,"وفاء اشرف عزت مهدي",31407011407545,"2014-07-01",0,3,9,"انثى",null,{"$f":"IFERROR(Father_Name(C391),\"\")","v":"اشرف عزت مهدي"},null,""]
[26,null,"يارا عبدالعاطي محمد عبدالعاطي",31402041401744,{"$f":"IFERROR(DATE(IF(LEFT(D392,1)*1=3,20,19)&MID(D392,2,2),MID(D392,4,2),MID(D392,6,2)),\"\")","v":"2014-02-04"},27,7,9,"انثى",null,{"$f":"IFERROR(Father_Name(C392),\"\")","v":"عبدالعاطي محمد عبدالعاطي"},null,""]
[27,null,"ياسمين الصياد رمضان السيد السيد عتمان",31311131402582,"2013-11-13",{"$f":"IFERROR(DATEDIF(E393,$K$1,\"MD\"),\"\")","v":18},{"$f":"IFERROR(DATEDIF(E393,$K$1,\"YM\"),\"\")","v":10},{"$f":"IFERROR(DATEDIF(E393,$K$1,\"Y\"),\"\")","v":9},{"$f":"IFERROR(IF(ISODD(MID(D393,13,1)),\"ذكر\",\"انثى\"),\"\")","v":"انثى"},null,{"$f":"IFERROR(Father_Name(C393),\"\")","v":"الصياد رمضان السيد السيد عتمان"},null,{"$f":"IF(C393=\"\",\"\",IF(COUNTIF($K$8:$K$1000,K393)>1,\"توئم\",\"\"))","v":""}]
[28,null,"ياسمين مجدي محمد عبدالمنعم",31403181403026,"2014-03-18",13,6,9,"انثى",null,{"$f":"IFERROR(Father_Name(C394),\"\")","v":"مجدي محمد عبدالمنعم"},null,""]
[29,null,"ياسمين محمد السيد محمد",31311111404945,"2013-11-11",20,10,9,"انثى",null,{"$f":"IFERROR(Father_Name(C395),\"\")","v":"محمد السيد محمد"},null,""]
[30,null,"ياسمين محمد سعد محمد",31403161403208,"2014-03-16",15,6,9,"انثى",null,{"$f":"IFERROR(Father_Name(C396),\"\")","v":"محمد سعد محمد"},null,""]
[31,null,"ياسمين محمد كمال السيد",31407201400504,"2014-07-20",11,2,9,"انثى",null,{"$f":"IFERROR(Father_Name(C397),\"\")","v":"محمد كمال السيد"},null,""]
[32,null,"ياسمين ممدوح عاطف محمد",31312281402307,"2013-12-28",3,9,9,"انثى",null,{"$f":"IFERROR(Father_Name(C398),\"\")","v":"ممدوح عاطف محمد"},null,""]
[33,null,"يمني هاني عادل قوشه",31401191403765,"2014-01-19",12,8,9,"انثى",null,{"$f":"IFERROR(Father_Name(C399),\"\")","v":"هاني عادل قوشه"},null,""]

{"sheet":"قوائم","index":2,"n_rows":47,"n_cols":25,"rows_kept":47,"cut":false,"hidden":false,"merged":[[2,21,2,22],[2,0,2,1]]}
["اسم الإدارة",null,null,{"$f":"\"عدد البنون\"&\" / \"&COUNTA(B5:B47)","v":"عدد البنون / 0"},null,null,null,null,"اكتب اسم المدرسة والإدارة في اخر هذا الجدول",null,null,null,null,null,null,null,null,null,null,null,null,"اسم الإدارة",null,null,{"$f":"\"عدد البنون\"&\" / \"&COUNTA(W5:W47)","v":"عدد البنون / 0"}]
["اسم المدرسة",null,null,{"$f":"\"عدد البنات\"&\" / \"&COUNTA(D5:D47)","v":"عدد البنات / 0"},null,null,null,null,null,null,null,null,null,null,"أسماء الطلاب","الرقم القومى","تاريخ الميلاد","يوم","شهر","سنة",null,"اسم المدرسة",null,null,{"$f":"\"عدد البنات\"&\" / \"&COUNTA(Y5:Y47)","v":"عدد البنات / 0"}]
[{"$f":"\"قوائم فصل \"&\" \"&H2&\" / \" &H3","v":"قوائم فصل   / "},null,"1 / 1",{"$f":"\"اجمالى الفصل\"&\" / \"&COUNTA(B5:B47)+COUNTA(D5:D47)","v":"اجمالى الفصل / 0"},null,null,null,null,null,null,null,null,null,null,null,null,null,null,null,null,null,{"$f":"\"قوائم فصل \"&\" \"&AC2&\" / \" &AC3","v":"قوائم فصل   / "},null,null,{"$f":"\"اجمالى الفصل\"&\" / \"&COUNTA(W5:W47)+COUNTA(Y5:Y47)","v":"اجمالى الفصل / 0"}]
["م","الاسم","م","الاسم",null,null,null,null,null,null,null,null,null,null,null,null,null,null,null,null,null,"م","الاسم","م","الاسم"]
[null,null,null,null,null,null,null,null,null,null,null,null,null,null,null,null,null,null,null,null,null,{"$f":"IF(W5=\"\",\"\",MOD(ROW(),47)-4)","v":""},null,{"$f":"MAX(V5:V47)","v":0}]
[null,null,null,null,null,"عدد مرات الطباعة",11,null,null,null,null,null,null,null,null,null,null,null,null,null,null,{"$f":"IF(W6=\"\",\"\",MOD(ROW(),47)-4)","v":""},null,{"$f":"IF(Y6=\"\",\"\",X5+1)","v":""}]
[null,null,null,null,null,"تاريخ اخر طباعة","2023-01-13",null,null,null,null,null,null,null,null,null,null,null,null,null,null,{"$f":"IF(W7=\"\",\"\",MOD(ROW(),47)-4)","v":""},null,{"$f":"IF(Y7=\"\",\"\",X6+1)","v":""}]
[null,null,null,null,null,null,null,null,null,null,null,null,null,null,null,null,null,null,null,null,null,"",null,""]
[null,null,null,null,null,null,null,null,null,null,null,null,null,null,null,null,null,null,null,null,null,"",null,""]
[null,null,null,null,null,null,null,null,null,null,null,null,null,null,null,null,null,null,null,null,null,"",null,""]
[null,null,null,null,null,null,null,null,null,null,null,null,null,null,null,null,null,null,null,null,null,"",null,""]
[null,null,null,null,null,null,null,null,null,null,null,null,null,null,null,null,null,null,null,null,null,"",null,""]
[null,null,null,null,null,null,null,null,null,null,null,null,null,null,null,null,null,null,null,null,null,"",null,""]
[null,null,null,null,null,null,null,null,null,null,null,null,null,null,null,null,null,null,null,null,null,"",null,""]
[null,null,null,null,null,null,null,null,null,null,null,null,null,null,null,null,null,null,null,null,null,"",null,""]
[null,null,null,null,null,null,null,null,null,null,null,null,null,null,null,null,null,null,null,null,null,"",null,""]
[null,null,null,null,null,null,null,null,null,null,null,null,null,null,null,null,null,null,null,null,null,"",null,""]
[null,null,null,null,null,null,null,null,null,null,null,null,null,null,null,null,null,null,null,null,null,"",null,""]
[null,null,null,null,null,null,null,null,null,null,null,null,null,null,null,null,null,null,null,null,null,"",null,""]
[null,null,null,null,null,null,null,null,null,null,null,null,null,null,null,null,null,null,null,null,null,"",null,""]
[null,null,null,null,null,null,null,null,null,null,null,null,null,null,null,null,null,null,null,null,null,"",null,""]
[null,null,null,null,null,null,null,null,null,null,null,null,null,null,null,null,null,null,null,null,null,"",null,""]
[null,null,null,null,null,null,null,null,null,null,null,null,null,null,null,null,null,null,null,null,null,"",null,""]
[null,null,null,null,null,null,null,null,null,null,null,null,null,null,null,null,null,null,null,null,null,"",null,""]
[null,null,null,null,null,null,null,null,null,null,null,null,null,null,null,null,null,null,null,null,null,"",null,""]
[null,null,null,null,null,null,null,null,null,null,null,null,null,null,null,null,null,null,null,null,null,"",null,""]
[null,null,null,null,null,null,null,null,null,null,null,null,null,null,null,null,null,null,null,null,null,"",null,""]
[null,null,null,null,null,null,null,null,null,null,null,null,null,null,null,null,null,null,null,null,null,"",null,""]
[null,null,null,null,null,null,null,null,null,null,null,null,null,null,null,null,null,null,null,null,null,"",null,""]
[null,null,null,null,null,null,null,null,null,null,null,null,null,null,null,null,null,null,null,null,null,"",null,""]
[null,null,null,null,null,null,null,null,null,null,null,null,null,null,null,null,null,null,null,null,null,"",null,""]
[null,null,null,null,null,null,null,null,null,null,null,null,null,null,null,null,null,null,null,null,null,"",null,""]
[null,null,null,null,null,null,null,null,null,null,null,null,null,null,null,null,null,null,null,null,null,"",null,""]
[null,null,null,null,null,null,null,null,null,null,null,null,null,null,null,null,null,null,null,null,null,"",null,""]
[null,null,null,null,null,null,null,null,null,null,null,null,null,null,null,null,null,null,null,null,null,"",null,""]
[null,null,null,null,null,null,null,null,null,null,null,null,null,null,null,null,null,null,null,null,null,"",null,""]
[null,null,null,null,null,null,null,null,null,null,null,null,null,null,null,null,null,null,null,null,null,"",null,""]
[null,null,null,null,null,null,null,null,null,null,null,null,null,null,null,null,null,null,null,null,null,"",null,""]
[null,null,null,null,null,null,null,null,null,null,null,null,null,null,null,null,null,null,null,null,null,"",null,""]
[null,null,null,null,null,null,null,null,null,null,null,null,null,null,null,null,null,null,null,null,null,"",null,""]
[null,null,null,null,null,null,null,null,null,null,null,null,null,null,null,null,null,null,null,null,null,"",null,""]
[null,null,null,null,null,null,null,null,null,null,null,null,null,null,null,null,null,null,null,null,null,"",null,""]
[null,null,null,null,null,null,null,null,null,null,null,null,null,null,null,null,null,null,null,null,null,"",null,""]
[{"$f":"IF(B44=\"\",\"\",MOD(ROW(),47)-4)","v":""},null,{"$f":"IF(D44=\"\",\"\",C43+1)","v":""},null,null,null,null,null,null,null,null,null,null,null,null,null,null,null,null,null,null,"",null,""]
["",null,"",null,null,null,null,null,null,null,null,null,null,null,null,null,null,null,null,null,null,"",null,""]
["",null,"",null,null,null,null,null,null,null,null,null,null,null,null,null,null,null,null,null,null,"",null,""]
[{"$f":"IF(B47=\"\",\"\",MOD(ROW(),47)-4)","v":""},null,"",null,null,null,null,null,null,null,null,null,null,null,null,null,null,null,null,null,null,{"$f":"IF(W47=\"\",\"\",MOD(ROW(),47)-4)","v":""},null,""]

{"sheet":"قوائم بالسن","index":3,"n_rows":47,"n_cols":33,"rows_kept":47,"cut":false,"hidden":false,"merged":[[0,29,0,32],[1,29,1,32],[2,21,2,22],[2,29,2,32],[3,22,4,22],[3,23,4,23],[3,24,3,26],[3,29,4,29],[3,30,3,32],[0,8,0,11],[1,8,1,11],[2,0,2,1],[2,8,2,11],[3,1,4,1],[3,2,4,2],[3,3,3,5],[3,8,4,8],[3,9,3,11]]}
["اسم الإدارة",null,null,null,null,null,null,null,{"$f":"\"عدد البنون\"&\" / \"&COUNTA(B6:B41)","v":"عدد البنون / 0"},null,null,null,null,"اكتب اسم المدرسة والإدارة في اخر هذا الجدول",null,null,null,null,null,null,null,"اسم الإدارة",null,null,null,null,null,null,null,{"$f":"\"عدد البنون\"&\" / \"&COUNTA(W6:W41)","v":"عدد البنون / 0"}]
["اسم المدرسة",null,null,null,null,null,null,null,{"$f":"\"عدد البنات\"&\" / \"&COUNTA(H6:H41)","v":"عدد البنات / 0"},null,null,null,null,null,"أسماء الطلاب","الرقم القومى","تاريخ الميلاد","يوم","شهر","سنة",null,"اسم المدرسة",null,null,null,null,null,null,null,{"$f":"\"عدد البنات\"&\" / \"&COUNTA(AC6:AC41)","v":"عدد البنات / 0"}]
["قائمة فصل /",null,"1 / 1",null,null,null,null,{"$f":"\"كشف رقم \"&INT(ROW()/42)+1","v":"كشف رقم 1"},{"$f":"\"اجمالى الفصل\"&\" / \"&COUNTA(B6:B41)+COUNTA(H6:H41)","v":"اجمالى الفصل / 0"},null,{"$f":"SUM(I3:J3)","v":0},null,null,null,null,null,null,null,null,null,null,"قائمة فصل /",null,null,null,null,null,null,{"$f":"\"كشف رقم \"&INT(ROW()/42)+1","v":"كشف رقم 1"},{"$f":"\"اجمالى الفصل\"&\" / \"&COUNTA(W6:W41)+COUNTA(AC6:AC41)","v":"اجمالى الفصل / 0"},null,{"$f":"SUM(AD3:AE3)","v":0}]
[null,"الاسم","تاريخ الميلاد",{"$f":"\"السن فى\"&\" \"&TEXT(DATE(YEAR(TODAY()),10,1),\"yyyy/mm/dd\")","v":"السن فى 2023/10/01"},null,null,null,null,"تاريخ الميلاد",{"$f":"\"السن فى\"&\" \"&TEXT(DATE(YEAR(TODAY()),10,1),\"yyyy/mm/dd\")","v":"السن فى 2023/10/01"},null,null,null,null,null,null,null,null,null,null,null,null,"الاسم","تاريخ الميلاد",{"$f":"\"السن فى\"&\" \"&TEXT(DATE(YEAR(TODAY()),10,1),\"yyyy/mm/dd\")","v":"السن فى 2023/10/01"},null,null,null,null,"تاريخ الميلاد",{"$f":"\"السن فى\"&\" \"&TEXT(DATE(YEAR(TODAY()),10,1),\"yyyy/mm/dd\")","v":"السن فى 2023/10/01"}]
["م",null,null,"يوم","شهر","سنة","م","الاسم",null,"يوم","شهر","سنة",null,null,null,null,null,null,null,null,null,"م",null,null,"يوم","شهر","سنة","م","الاسم",null,"يوم","شهر","سنة"]
[null,null,null,null,null,null,null,null,null,null,null,null,null,null,null,null,null,null,null,null,null,{"$f":"IF(W6=\"\",\"\",MOD(ROW(),42)-5)","v":""},null,null,null,null,null,{"$f":"IF(AC6=\"\",\"\",MAX(V6:V41)+1)","v":""}]
[null,null,null,null,null,null,null,null,null,null,null,null,null,null,null,null,null,null,null,null,null,{"$f":"IF(W7=\"\",\"\",MOD(ROW(),42)-5)","v":""},null,null,null,null,null,{"$f":"IF(AC7=\"\",\"\",AB6+1)","v":""}]
[null,null,null,null,null,null,null,null,null,null,null,null,null,null,null,null,null,null,null,null,null,"",null,null,null,null,null,{"$f":"IF(AC8=\"\",\"\",AB7+1)","v":""}]
[null,null,null,null,null,null,null,null,null,null,null,null,null,null,null,null,null,null,null,null,null,"",null,null,null,null,null,""]
[null,null,null,null,null,null,null,null,null,null,null,null,null,null,null,null,null,null,null,null,null,"",null,null,null,null,null,""]
[null,null,null,null,null,null,null,null,null,null,null,null,null,null,null,null,null,null,null,null,null,"",null,null,null,null,null,""]
[null,null,null,null,null,null,null,null,null,null,null,null,null,null,null,null,null,null,null,null,null,"",null,null,null,null,null,""]
[null,null,null,null,null,null,null,null,null,null,null,null,null,null,null,null,null,null,null,null,null,"",null,null,null,null,null,""]
[null,null,null,null,null,null,null,null,null,null,null,null,null,null,null,null,null,null,null,null,null,"",null,null,null,null,null,""]
[null,null,null,null,null,null,null,null,null,null,null,null,null,null,null,null,null,null,null,null,null,"",null,null,null,null,null,""]
[null,null,null,null,null,null,null,null,null,null,null,null,null,null,null,null,null,null,null,null,null,"",null,null,null,null,null,""]
[null,null,null,null,null,null,null,null,null,null,null,null,null,null,null,null,null,null,null,null,null,"",null,null,null,null,null,""]
[null,null,null,null,null,null,null,null,null,null,null,null,null,null,null,null,null,null,null,null,null,"",null,null,null,null,null,""]
[null,null,null,null,null,null,null,null,null,null,null,null,null,null,null,null,null,null,null,null,null,"",null,null,null,null,null,""]
[null,null,null,null,null,null,null,null,null,null,null,null,null,null,null,null,null,null,null,null,null,"",null,null,null,null,null,""]
[null,null,null,null,null,null,null,null,null,null,null,null,null,null,null,null,null,null,null,null,null,"",null,null,null,null,null,""]
[null,null,null,null,null,null,null,null,null,null,null,null,null,null,null,null,null,null,null,null,null,"",null,null,null,null,null,""]
[null,null,null,null,null,null,null,null,null,null,null,null,null,null,null,null,null,null,null,null,null,"",null,null,null,null,null,""]
[null,null,null,null,null,null,null,null,null,null,null,null,null,null,null,null,null,null,null,null,null,"",null,null,null,null,null,""]
[null,null,null,null,null,null,null,null,null,null,null,null,null,null,null,null,null,null,null,null,null,"",null,null,null,null,null,""]
[null,null,null,null,null,null,null,null,null,null,null,null,null,null,null,null,null,null,null,null,null,"",null,null,null,null,null,""]
[null,null,null,null,null,null,null,null,null,null,null,null,null,null,null,null,null,null,null,null,null,"",null,null,null,null,null,""]
[null,null,null,null,null,null,null,null,null,null,null,null,null,null,null,null,null,null,null,null,null,"",null,null,null,null,null,""]
[null,null,null,null,null,null,null,null,null,null,null,null,null,null,null,null,null,null,null,null,null,"",null,null,null,null,null,""]
[null,null,null,null,null,null,null,null,null,null,null,null,null,null,null,null,null,null,null,null,null,"",null,null,null,null,null,""]
[null,null,null,null,null,null,null,null,null,null,null,null,null,null,null,null,null,null,null,null,null,"",null,null,null,null,null,""]
[null,null,null,null,null,null,null,null,null,null,null,null,null,null,null,null,null,null,null,null,null,"",null,null,null,null,null,""]
[null,null,null,null,null,null,null,null,null,null,null,null,null,null,null,null,null,null,null,null,null,"",null,null,null,null,null,""]
[null,null,null,null,null,null,null,null,null,null,null,null,null,null,null,null,null,null,null,null,null,"",null,null,null,null,null,""]
[null,null,null,null,null,null,null,null,null,null,null,null,null,null,null,null,null,null,null,null,null,"",null,null,null,null,null,""]
[null,null,null,null,null,null,null,null,null,null,null,null,null,null,null,null,null,null,null,null,null,"",null,null,null,null,null,""]
[null,null,null,null,null,null,null,null,null,null,null,null,null,null,null,null,null,null,null,null,null,"",null,null,null,null,null,""]
[null,null,null,null,null,null,null,null,null,null,null,null,null,null,null,null,null,null,null,null,null,"",null,null,null,null,null,""]
[null,null,null,null,null,null,null,null,null,null,null,null,null,null,null,null,null,null,null,null,null,"",null,null,null,null,null,""]
[null,null,null,null,null,null,null,null,null,null,null,null,null,null,null,null,null,null,null,null,null,"",null,null,null,null,null,""]
[null,null,null,null,null,null,null,null,null,null,null,null,null,null,null,null,null,null,null,null,null,"",null,null,null,null,null,""]
[null,null,null,null,null,null,null,null,null,null,null,null,null,null,null,null,null,null,null,null,null,"",null,null,null,null,null,{"$f":"IF(AC42=\"\",\"\",AB41+1)","v":""}]
[null,null,null,null,null,null,null,null,null,null,null,null,null,null,null,null,null,null,null,null,null,"",null,null,null,null,null,{"$f":"IF(AC43=\"\",\"\",AB42+1)","v":""}]
[null,null,null,null,null,null,null,null,null,null,null,null,null,null,null,null,null,null,null,null,null,"",null,null,null,null,null,""]
[null,null,null,null,null,null,null,null,null,null,null,null,null,null,null,null,null,null,null,null,null,"",null,null,null,null,null,""]
[null,null,null,null,null,null,null,null,null,null,null,null,null,null,null,null,null,null,null,null,null,"",null,null,null,null,null,""]
[null,null,null,null,null,null,null,null,null,null,null,null,null,null,null,null,null,null,null,null,null,"",null,null,null,null,null,""]

{"sheet":"ملف اعمل السنة","index":4,"n_rows":46,"n_cols":50,"rows_kept":46,"cut":false,"hidden":false,"merged":[[5,2,5,6],[5,7,5,11],[5,12,5,16],[5,49,6,49],[5,18,6,18],[5,19,6,19],[5,20,6,20],[5,29,7,29],[5,30,7,30],[5,31,5,35],[5,36,5,40],[5,41,5,45],[5,46,6,46],[5,47,6,47],[5,48,6,48],[5,17,6,17],[0,13,0,17],[0,22,0,23],[0,42,0,46],[2,0,2,20],[2,29,2,49],[3,0,3,3],[3,4,3,5],[3,29,3,32],[3,33,3,34],[3,40,3,49],[3,11,3,20],[4,40,4,49],[4,11,4,20],[5,0,7,0],[5,1,7,1]]}
["وزارة التربية والتعليم",null,null,null,null,null,null,null,null,null,null,null,null,null,null,null,null,null,null,null,null,null,"عدد الفصول",null,{"$f":"COUNTA($W$9:$W$20)","v":8},null,null,null,null,"وزارة التربية والتعليم"]
["قطاع التعليم العام",null,null,null,null,null,null,null,null,null,null,null,null,null,null,null,null,null,null,null,null,null,null,null,null,null,null,"أسماء الطلاب",null,"قطاع التعليم العام"]
["مكتب تنمية مادة الدراسات الاجتماعية في مادة الدراسات",null,null,null,null,null,null,null,null,null,null,null,null,null,null,null,null,null,null,null,null,null,null,null,null,null,null,null,null,"مكتب تنمية مادة الدراسات الاجتماعية في مادة الدراسات"]
["كشف درجات تلاميذ فصل",null,null,null,"1 / 1",null,null,null,null,"ذكر",{"$f":"VLOOKUP(J4,'قاعدة البيانات'!$O$2:$P$3,2,0)","v":"الأولاد"},{"$f":"\"عدد طلاب الفصل من \"&K4&\" /\"&COUNTA(B6:B46)-1","v":"عدد طلاب الفصل من الأولاد /0"},null,null,null,null,null,null,null,null,null,null,null,null,null,null,null,null,null,"كشف درجات تلاميذ فصل",null,null,null,"1 / 1",null,null,null,null,"انثى",{"$f":"VLOOKUP(AM4,'قاعدة البيانات'!$O$2:$P$3,2,0)","v":"البنات"},{"$f":"\"عدد طلاب الفصل من \"&AN4&\" /\"&COUNTA(AE6:AE46)-1","v":"عدد طلاب الفصل من البنات /0"}]
["الفصل الدراسى :",null,null,null,null,"للعام الدراسى :",null,null,null,null,null,{"$f":"\"كشف رقم \"&INT(ROW()/47)+1","v":"كشف رقم 1"},null,null,null,null,null,null,null,null,null,null,null,null,null,null,null,null,null,"الفصل الدراسى :",null,null,null,null,"للعام الدراسى :",null,null,null,null,null,{"$f":"\"كشف رقم \"&INT(ROW()/47)+1","v":"كشف رقم 1"}]
["م","اسم التلميذ","شهر فبراير",null,null,null,null,"شهر مارس",null,null,null,null,"شهر ابريل",null,null,null,null,"مجموع الاشهر","المتوسط","امتحان اخر العام","الدرجة النهائية",null,null,null,null,null,null,null,null,"م","اسم التلميذ","شهر فبراير",null,null,null,null,"شهر مارس",null,null,null,null,"شهر ابريل",null,null,null,null,"مجموع الاشهر","المتوسط","امتحان اخر العام","الدرجة النهائية"]
[null,null,"مهمام فردية","انشطة مصاحبة","انشطة مستدامة","تقيمات شفهية","مجموع","مهمام فردية","انشطة مصاحبة","انشطة مستدامة","تقيمات شفهية","مجموع","مهمام فردية","انشطة مصاحبة","انشطة مستدامة","تقيمات شفهية","مجموع",null,null,null,null,null,null,null,null,null,null,null,null,null,null,"مهمام فردية","انشطة مصاحبة","انشطة مستدامة","تقيمات شفهية","مجموع","مهمام فردية","انشطة مصاحبة","انشطة مستدامة","تقيمات شفهية","مجموع","مهمام فردية","انشطة مصاحبة","انشطة مستدامة","تقيمات شفهية","مجموع"]
[null,null,25,10,15,25,75,25,10,15,25,75,25,10,15,25,75,225,75,25,100,null,"النوع","الفصل","العدد",null,null,null,null,null,null,25,10,15,25,75,25,10,15,25,75,25,10,15,25,75,225,75,25,100]
[null,null,null,null,null,null,null,null,null,null,null,null,null,null,null,null,null,null,null,null,null,null,"ذكر","1 / 1",null,null,null,null,null,{"$f":"IF(AE9=\"\",\"\",MOD(ROW(),47)-8)","v":""}]
[null,null,null,null,null,null,null,null,null,null,null,null,null,null,null,null,null,null,null,null,null,null,"انثى","1 / 1",null,null,null,null,null,{"$f":"IF(AE10=\"\",\"\",MOD(ROW(),47)-8)","v":""}]
[null,null,null,null,null,null,null,null,null,null,null,null,null,null,null,null,null,null,null,null,null,null,"ذكر","2 / 1",null,null,null,null,null,""]
[null,null,null,null,null,null,null,null,null,null,null,null,null,null,null,null,null,null,null,null,null,null,"انثى","2 / 1",null,null,null,null,null,""]
[null,null,null,null,null,null,null,null,null,null,null,null,null,null,null,null,null,null,null,null,null,null,"ذكر","6 / 1",null,null,null,null,null,""]
[null,null,null,null,null,null,null,null,null,null,null,null,null,null,null,null,null,null,null,null,null,null,"ذكر","3 / 1",null,null,null,null,null,""]
[null,null,null,null,null,null,null,null,null,null,null,null,null,null,null,null,null,null,null,null,null,null,"انثى","3 / 1",null,null,null,null,null,""]
[null,null,null,null,null,null,null,null,null,null,null,null,null,null,null,null,null,null,null,null,null,null,"انثى","6 / 1",null,null,null,null,null,""]
[null,null,null,null,null,null,null,null,null,null,null,null,null,null,null,null,null,null,null,null,null,null,null,null,null,null,null,null,null,""]
[null,null,null,null,null,null,null,null,null,null,null,null,null,null,null,null,null,null,null,null,null,null,null,null,null,null,null,null,null,""]
[null,null,null,null,null,null,null,null,null,null,null,null,null,null,null,null,null,null,null,null,null,null,null,null,null,null,null,null,null,""]
[null,null,null,null,null,null,null,null,null,null,null,null,null,null,null,null,null,null,null,null,null,null,null,null,null,null,null,null,null,""]
[null,null,null,null,null,null,null,null,null,null,null,null,null,null,null,null,null,null,null,null,null,null,null,null,null,null,null,null,null,""]
[null,null,null,null,null,null,null,null,null,null,null,null,null,null,null,null,null,null,null,null,null,null,null,null,null,null,null,null,null,""]
[null,null,null,null,null,null,null,null,null,null,null,null,null,null,null,null,null,null,null,null,null,null,null,null,null,null,null,null,null,""]
[null,null,null,null,null,null,null,null,null,null,null,null,null,null,null,null,null,null,null,null,null,null,null,null,null,null,null,null,null,""]
[null,null,null,null,null,null,null,null,null,null,null,null,null,null,null,null,null,null,null,null,null,null,null,null,null,null,null,null,null,""]
[null,null,null,null,null,null,null,null,null,null,null,null,null,null,null,null,null,null,null,null,null,null,null,null,null,null,null,null,null,""]
[null,null,null,null,null,null,null,null,null,null,null,null,null,null,null,null,null,null,null,null,null,null,null,null,null,null,null,null,null,""]
[null,null,null,null,null,null,null,null,null,null,null,null,null,null,null,null,null,null,null,null,null,null,null,null,null,null,null,null,null,""]
[null,null,null,null,null,null,null,null,null,null,null,null,null,null,null,null,null,null,null,null,null,null,null,null,null,null,null,null,null,""]
[null,null,null,null,null,null,null,null,null,null,null,null,null,null,null,null,null,null,null,null,null,null,null,null,null,null,null,null,null,""]
[null,null,null,null,null,null,null,null,null,null,null,null,null,null,null,null,null,null,null,null,null,null,null,null,null,null,null,null,null,""]
[null,null,null,null,null,null,null,null,null,null,null,null,null,null,null,null,null,null,null,null,null,null,null,null,null,null,null,null,null,""]
[null,null,null,null,null,null,null,null,null,null,null,null,null,null,null,null,null,null,null,null,null,null,null,null,null,null,null,null,null,""]
[null,null,null,null,null,null,null,null,null,null,null,null,null,null,null,null,null,null,null,null,null,null,null,null,null,null,null,null,null,""]
[null,null,null,null,null,null,null,null,null,null,null,null,null,null,null,null,null,null,null,null,null,null,null,null,null,null,null,null,null,""]
[null,null,null,null,null,null,null,null,null,null,null,null,null,null,null,null,null,null,null,null,null,null,null,null,null,null,null,null,null,""]
[null,null,null,null,null,null,null,null,null,null,null,null,null,null,null,null,null,null,null,null,null,null,null,null,null,null,null,null,null,""]
[null,null,null,null,null,null,null,null,null,null,null,null,null,null,null,null,null,null,null,null,null,null,null,null,null,null,null,null,null,""]
[null,null,null,null,null,null,null,null,null,null,null,null,null,null,null,null,null,null,null,null,null,null,null,null,null,null,null,null,null,""]
[null,null,null,null,null,null,null,null,null,null,null,null,null,null,null,null,null,null,null,null,null,null,null,null,null,null,null,null,null,""]
[null,null,null,null,null,null,null,null,null,null,null,null,null,null,null,null,null,null,null,null,null,null,null,null,null,null,null,null,null,""]
[null,null,null,null,null,null,null,null,null,null,null,null,null,null,null,null,null,null,null,null,null,null,null,null,null,null,null,null,null,""]
[null,null,null,null,null,null,null,null,null,null,null,null,null,null,null,null,null,null,null,null,null,null,null,null,null,null,null,null,null,""]
[null,null,null,null,null,null,null,null,null,null,null,null,null,null,null,null,null,null,null,null,null,null,null,null,null,null,null,null,null,""]
[null,null,null,null,null,null,null,null,null,null,null,null,null,null,null,null,null,null,null,null,null,null,null,null,null,null,null,null,null,""]
[null,null,null,null,null,null,null,null,null,null,null,null,null,null,null,null,null,null,null,null,null,null,null,null,null,null,null,null,null,""]

{"sheet":"kh","index":5,"n_rows":14,"n_cols":4,"rows_kept":14,"cut":false,"hidden":false,"merged":[]}
[]
[]
[null,"القوائم الرئيسية"]
[null,"الاسم الظاهر على الزر","اسم الكود\nاو علامة التمييز للقائمة الفرعية","الصورة ان وجدت\nاو اسم النطاق للقائمة"]
[]
[null,"الذهاب الى شيت؟؟","kh_GO_TO",1576]
[null,"توزيع عشوائى","kh_1",23]
[null,"توزيع ابجدى","kh_2",3]
[]
[]
[]
[]
[null,"ترحيل القوائم","kh_3",100]
[null,"ترحيل القوائم بالسن ","kh_4",370]